{"text_format":"1","workbook":"xlsx","n_sheets":17,"sheets":["本ツールについて","DATA","●　入力ﾌｫｰﾑ　●","予約票兼申込書","判定申請一面","計画通知一面","計画変更一面","変更通知一面","申請書二面・三面","委任状","送付依頼書","追加建築主","追加設計者","追加構一","追加第三面（複数棟用）","追加委任状","ﾌﾟﾙﾀﾞｳﾝﾘｽﾄ"],"not_rendered":{"charts":0,"images":7,"macros":1,"external_links":0,"defined_names":15,"comments":2,"pivot_tables":0},"unopened":[],"bounds":{"document_bytes":16777216,"sheet_cells":100000,"rows_first":2000,"rows_last":500,"rows_between":2000,"halvings":0,"cell_chars":16384,"cell_head_chars":4096},"cells_cut":0,"cells_raw":0,"read":"whole","date_system":"1900"}

{"sheet":"本ツールについて","index":0,"n_rows":89,"n_cols":34,"rows_kept":89,"cut":false,"hidden":false,"merged":[[0,0,0,52],[14,0,14,52],[66,0,66,52],[24,3,24,5],[26,3,26,5],[24,29,24,31],[26,29,26,31]]}
["　　-　 「申請書類」作成ツールについて　-"]
[]
[null,"◇","本ツールは、「入力フォーム」の入力したのち、出力（印刷）します。"]
[null,"◇","作業環境とＥｘｃｅｌのバージョンが異なる場合、動作環境によって一部の機能が失われる等、正常に実行されなくなる可能性があることをあらかじめご了承下さい。"]
[null,"◇","当該ファイルには関数やマクロが含まれていますので、不具合が生じる場合があることをあらかじめご了承下さい。"]
[null,"◇","入力シートやセルの挿入、削除等を行いますとツールが誤作動を起こす可能性があります。"]
[null,"◇","メッセージバーで　［セキュリティの警告　マクロが無効にされました。］　が表示された場合、　［コンテンツの有効化］　をクリックして下さい。"]
[null,"◇","「このファイルを信頼済みドキュメントにしますか？」　が表示された場合、　［ＯＫ］をクリックしてください。"]
[null,"◇","保存する際、　［ドキュメント検査機能では削除できない個人情報がドキュメントに含まれていることがありますので、ご注意ください。］　が表示された場合、　［ＯＫ］をクリックしてください。"]
[null,"◇","本ツールの使用に起因する一切の不利益に関して、九州住宅保証株式会社はその責任を負いません。使用者の責任においてご活用下さい。"]
[null,"◇","本ツールは、九州住宅保証株式会社への構造適合判定申請を目的に作成されています。"]
[null,"◇","上記の目的以外に、当社の許可なく、本ツールを複写、加工し、一般に公開、配布することを禁じます。"]
[]
[]
["　　- 　本ツールの機能・操作について　-"]
[]
[null,"◆","初めに入力して頂くシートは、「入力フォーム」です。つぎに「予約票兼申込書」になります。　必要に応じて「計画変更の申請書一面」及び「送付依頼書」を入力して下さい。"]
[null,null,"※「●入力フォーム●」及び「予約票兼申込書」の入力は必須となります。予約時点でも入力をお願います。"]
[null,null,"※計画変更（計画変更通知）の場合は、「入力フォーム」 の 建築物朴立部分概要【8.計画変更の概要】 に、棟別で記載して下さい。"]
[null,null,"　記載された変更内容が、第一面〔計画変更の概要〕に、自動集約されます。　直前の判定通知書の日付・番号等は直接入力して下さい。"]
[null,"◆","各シートの印刷範囲外に、注意事項等のコメント、マクロボタン等を設けています。"]
[]
[null,null,"①","セルの説明について"]
[]
[null,null,null,"黄色セル",null,null,"：","プルダウンより選択して下さい。",null,null,null,null,null,null,null,null,null,null,null,null,null,null,null,null,null,null,null,null,null,"白色セル",null,null,"：","直接入力して下さい。"]
[]
[null,null,null,"緑色セル",null,null,"：","原則としてプルダウンメニューから選択して下さい。直接入力も可能です。",null,null,null,null,null,null,null,null,null,null,null,null,null,null,null,null,null,null,null,null,null,"灰色セル",null,null,"：","入力フォームの内容が自動反映されます。"]
[]
[null,null,"②","申請区分の切替について"]
[]
[null,null,null,"選択の後、左にある　［一面シート表示］ボタンを押して下さい。申請書第一面シートが切り替わります。"]
[]
[]
[]
[]
[]
[]
[]
[null,null,"③","住所の入力について"]
[]
[null,null,null,"IME（日本語入力）の設定の上、ハイフン有で入力し、変換キーを数回押すと、予測変換リストに住所が表示され、便利です。地番以下は直接入力が必要です。"]
[]
[]
[]
[]
[]
[]
[]
[]
[]
[]
[null,null,"④","マクロボタン（マクロ機能）について"]
[]
[null,null,null,null,null,null,null,null,null,null,null,"「入力フォーム」　の建物名称と保存された日が下記の様に、自動設定しています。"]
[null,null,null,null,null,null,null,null,null,null,null,"例：　建物名称（申請区分）_保存年月日　　→　〇〇新築工事（判定申請）_20250701.xlsm"]
[]
[null,null,null,null,null,null,null,null,null,null,null,"必要なシート・部数に応じて選択して、ご利用下さい。"]
[]
[]
[null,null,null,null,null,null,null,null,null,null,null,"「入力フォーム」　については、選択項目を削除します。"]
[null,null,null,null,null,null,null,null,null,null,null,"「予約票兼申込書」　「送信依頼書」　については、全て削除します。"]
[]
[null,null,null,null,null,null,null,null,null,null,null,"ブルダウンよりコピーしたい内容を選択して、ご利用下さい。"]
[null,null,null,null,null,null,null,null,null,null,null,"「事務所名」から「電話番号」（ハ～への項目）の内容が、反映されます。　［資格」、［氏名」、「作成又は確認した設計図書」（イ、ロ、トの項目）は反映されません。"]
[]
[]
["　　- 　メール送信について　-"]
[]
[null,"◆","申請時に本ツールの作成されたExcelデーターをメールで頂いております。ご協力をお願い致します。　また、送信される際は、メールの件名を下記の様に記載して下さい。（厳守）"]
[null,null,"※多い時には1日あたり100通程度のメール受信があり、内容確認等に時間がかかっております。"]
["　",null,"　件名ルール化により、出来るだけ早い対応が行えるよう改善したいと思いますので、皆様のご協力をお願い致します。"]
[null,"◆","弊社のメール受信容量は、１回あたり「10ＭＢ」までが限度です。"]
[]
[null,null,"①","送信先",null,null,"：",null,"hantei@kjhc.co.jp"]
[]
[null,null,"②","件名ルールについて"]
[]
[null,null,null,"・予約する場合　",null,null,null,null,null,null,null,null,"　→　【予約】〇〇工事新築工事　と件名に記載して送信"]
[]
[null,null,null,"・申請する場合",null,null,null,null,null,null,null,null,"　→　【申請】〇〇工事新築工事　と件名に記載して、Ｅｘｃｅｌデーター添付の上、送信"]
[]
[null,null,null,"・その他の場合（一貫計算ﾃﾞｰﾀｰ等）",null,null,null,null,null,null,null,null,"　→　【その他】〇〇工事新築工事　と件名に記載して送信"]
[]
[null,null,null,"・質疑書に回答する場合",null,null,null,null,null,null,null,null,"　→　【質疑回答】受付番号　〇〇工事新築工事　と件名に記載して送信"]
[]
[null,null,null,"・申請書等の書類指摘訂正の場合",null,null,null,null,null,null,null,null,"　→　【申請書等訂正】〇〇工事新築工事　と件名に記載して送信"]
[]
[null,null,null,"・複数の場合（例：質疑書に回答と申請書等の書類指摘訂正の場合）"]
[null,null,null,null,null,null,null,null,null,null,null,null,"　→　【質疑回答・申請書等訂正】〇〇工事新築工事　と件名に記載して送信"]

{"sheet":"DATA","index":1,"n_rows":47,"n_cols":8,"rows_kept":47,"cut":false,"hidden":true,"merged":[]}
[]
[null,"項目名","処理用参照値","プルダウン選択値",null,"プルダウン項目名","選択項目","値"]
[null,"申請の区分",{"$f":"'●　入力ﾌｫｰﾑ　●'!C2","v":"判定申請"},null,null,"代理者-他者からコピー","代表設計者",1]
[null,"代理者 - 他社からコピー",{"$f":"IF($D$4=1,$G$3,IF($D$4=2,$G$4,IF($D$4=3,$G$5,IF($D$4=4,$G$6,\"\"))))","v":"代表設計者"},1,null,null,"その他設計者1",2]
[null,"代表となる設計者-他者からコピー",{"$f":"IF($D$5=1,$G$11,IF($D$5=2,$G$12,IF($D$5=3,$G$13,IF($D$5=4,$G$14,\"\"))))","v":"代理者"},1,null,null,"その他設計者2",3]
[null,"その他設計者1-他者からコピー",{"$f":"IF($D$6=1,$G$19,IF($D$6=2,$G$20,IF($D$6=3,$G$21,IF($D$6=4,$G$22,\"\"))))","v":"代理者"},1,null,null,"その他設計者3",4]
[null,"その他設計者2-他者からコピー",{"$f":"IF($D$7=1,$G$27,IF($D$7=2,$G$28,IF($D$7=3,$G$29,IF($D$7=4,$G$30,\"\"))))","v":"代理者"},1]
[null,"その他設計者3-他者からコピー",{"$f":"IF($D$8=1,$G$35,IF($D$8=2,$G$36,IF($D$8=3,$G$37,IF($D$8=4,$G$38,\"\"))))","v":"代理者"},1]
[null,"保存ファイル名",{"$f":"CONCATENATE('●　入力ﾌｫｰﾑ　●'!C80,\"(\",'●　入力ﾌｫｰﾑ　●'!C2,\")_\",TEXT(TODAY(),\"yyyymmdd\"))","v":"(判定申請)_20251129"}]
[null,"印刷-予約票兼申込書",true,1]
[null,"印刷-該当申請書一面",true,2,null,"代表となる設計者-他者からコピー","代理者",1]
[null,"印刷-申請書二面・三面",true,2,null,null,"その他設計者1",2]
[null,"印刷-委任状",true,1,null,null,"その他設計者2",3]
[null,"印刷-送付依頼書",true,1,null,null,"その他設計者3",4]
[null,"印刷-追加建築主",false,2]
[null,"印刷-追加委任状",false,1]
[null,"印刷-追加設計者",false,2]
[null,"印刷-追加三面",false,2]
[null,"データクリア-日付・申請区分",true,null,null,"その他設計者1-他者からコピー","代理者",1]
[null,"データクリア-建築主",true,null,null,null,"代表設計者",2]
[null,"データクリア-代理者",true,null,null,null,"その他設計者2",3]
[null,"データクリア-代表設計者",true,null,null,null,"その他設計者3",4]
[null,"データクリア-その他設計者１",true]
[null,"データクリア-その他設計者2",true]
[null,"データクリア-その他設計者3",true]
[null,"データクリア-構造1級の旨表示",true]
[null,"データクリア-物件情報",true,null,null,"その他設計者2-他者からコピー","代理者",1]
[null,"データクリア-棟別情報１",true,null,null,null,"代表設計者",2]
[null,"データクリア-棟別情報2",true,null,null,null,"その他設計者1",3]
[null,"データクリア-棟別情報3",true,null,null,null,"その他設計者3",4]
[null,"予約票兼申込書-構造計算基準①",{"$f":"IF('●　入力ﾌｫｰﾑ　●'!$C$88=ﾌﾟﾙﾀﾞｳﾝﾘｽﾄ!$K$2,\"特定\",IF('●　入力ﾌｫｰﾑ　●'!$C$89=ﾌﾟﾙﾀﾞｳﾝﾘｽﾄ!$K$4,\"特定増改築\",\"\"))","v":""}]
[null,"予約票兼申込書-構造計算基準②",{"$f":"IF('●　入力ﾌｫｰﾑ　●'!$C$116=ﾌﾟﾙﾀﾞｳﾝﾘｽﾄ!$K$2,\"特定\",IF('●　入力ﾌｫｰﾑ　●'!$C$117=ﾌﾟﾙﾀﾞｳﾝﾘｽﾄ!$K$4,\"特定増改築\",\"\"))","v":""}]
[null,"予約票兼申込書-構造計算基準③",{"$f":"IF('●　入力ﾌｫｰﾑ　●'!$C$144=ﾌﾟﾙﾀﾞｳﾝﾘｽﾄ!$K$2,\"特定\",IF('●　入力ﾌｫｰﾑ　●'!$C$145=ﾌﾟﾙﾀﾞｳﾝﾘｽﾄ!$K$4,\"特定増改築\",\"\"))","v":""}]
[null,"申請書二面・三面-代表設計者-【ﾄ.作成又は確認した設計図書】",{"$f":"IF(OR(TRIM('●　入力ﾌｫｰﾑ　●'!$C$33)=\"\",TRIM('●　入力ﾌｫｰﾑ　●'!$C$34)=\"\"),CONCATENATE('●　入力ﾌｫｰﾑ　●'!$C$33&'●　入力ﾌｫｰﾑ　●'!$C$34&\"\"),CONCATENATE('●　入力ﾌｫｰﾑ　●'!$C$33,\"、\",'●　入力ﾌｫｰﾑ　●'!$C$34))","v":""}]
[null,"申請書二面・三面-その他設計者1-【ﾄ.作成又は確認した設計図書】",{"$f":"IF(OR(TRIM('●　入力ﾌｫｰﾑ　●'!$C$42)=\"\",TRIM('●　入力ﾌｫｰﾑ　●'!$C$43)=\"\"),CONCATENATE('●　入力ﾌｫｰﾑ　●'!$C$42&'●　入力ﾌｫｰﾑ　●'!$C$43&\"\"),CONCATENATE('●　入力ﾌｫｰﾑ　●'!$C$42,\"、\",'●　入力ﾌｫｰﾑ　●'!$C$43))","v":""},null,null,"その他設計者3-他者からコピー","代理者",1]
[null,"申請書二面・三面-その他設計者2-【ﾄ.作成又は確認した設計図書】",{"$f":"IF(OR(TRIM('●　入力ﾌｫｰﾑ　●'!$C$51)=\"\",TRIM('●　入力ﾌｫｰﾑ　●'!$C$52)=\"\"),CONCATENATE('●　入力ﾌｫｰﾑ　●'!$C$51&'●　入力ﾌｫｰﾑ　●'!$C$52&\"\"),CONCATENATE('●　入力ﾌｫｰﾑ　●'!$C$51,\"、\",'●　入力ﾌｫｰﾑ　●'!$C$52))","v":""},null,null,null,"代表設計者",2]
[null,"申請書二面・三面-その他設計者3-【ﾄ.作成又は確認した設計図書】",{"$f":"IF(OR(TRIM('●　入力ﾌｫｰﾑ　●'!$C$60)=\"\",TRIM('●　入力ﾌｫｰﾑ　●'!$C$61)=\"\"),CONCATENATE('●　入力ﾌｫｰﾑ　●'!$C$60&'●　入力ﾌｫｰﾑ　●'!$C$61&\"\"),CONCATENATE('●　入力ﾌｫｰﾑ　●'!$C$60,\"、\",'●　入力ﾌｫｰﾑ　●'!$C$61))","v":""},null,null,null,"その他設計者1",3]
[null,"申請書二面・三面-【ｲ.地名地番】",{"$f":"IF(TRIM('●　入力ﾌｫｰﾑ　●'!$D$72)=\"\",'●　入力ﾌｫｰﾑ　●'!$D$71,CONCATENATE('●　入力ﾌｫｰﾑ　●'!$D$71,\"、\",'●　入力ﾌｫｰﾑ　●'!$D$72))","v":""},null,null,null,"その他設計者2",4]
[null,"委任状、予約票兼申込書-【敷地の地名地番】",{"$f":"IF(TRIM('●　入力ﾌｫｰﾑ　●'!$D$72)=\"\",CONCATENATE('●　入力ﾌｫｰﾑ　●'!$C$71,'●　入力ﾌｫｰﾑ　●'!$D$71),CONCATENATE('●　入力ﾌｫｰﾑ　●'!$C$71,'●　入力ﾌｫｰﾑ　●'!$D$71,\"、\",'●　入力ﾌｫｰﾑ　●'!$D$72))","v":"福岡県"}]
[null,"計画変更一面、変更通知一面-計画変更の概要_作業用",{"$f":"COUNTA('●　入力ﾌｫｰﾑ　●'!$C$106,'●　入力ﾌｫｰﾑ　●'!$C$134,'●　入力ﾌｫｰﾑ　●'!$C$162)","v":0}]
[null,"計画変更一面、変更通知一面-計画変更の概要",{"$f":"IF(TRIM('●　入力ﾌｫｰﾑ　●'!$C$106)=\"\",IF(TRIM('●　入力ﾌｫｰﾑ　●'!$C$134)=\"\",'●　入力ﾌｫｰﾑ　●'!$C$162&\"\",IF(2=$C$40,CONCATENATE('●　入力ﾌｫｰﾑ　●'!$C$134,\"、\",'●　入力ﾌｫｰﾑ　●'!$C$162),'●　入力ﾌｫｰﾑ　●'!$C$134)),IF(TRIM('●　入力ﾌｫｰﾑ　●'!$C$134)=\"\",IF(2=$C$40, CONCATENATE('●　入力ﾌｫｰﾑ　●'!$C$106,\"、\",'●　入力ﾌｫｰﾑ　●'!$C$162), '●　入力ﾌｫｰﾑ　●'!$C$106),IF(3=$C$40, CONCATENATE('●　入力ﾌｫｰﾑ　●'!$C$106,\"、\",'●　入力ﾌｫｰﾑ　●'!$C$134,\"、\",'●　入力ﾌｫｰﾑ　●'!$C$162), CONCATENATE('●　入力ﾌｫｰﾑ　●'!$C$106,\"、\",'●　入力ﾌｫｰﾑ　●'!$C$134))))","v":""}]
[null,"予約票兼申込書-構造計算基準④",{"$f":"IF('追加第三面（複数棟用）'!$B$15=ﾌﾟﾙﾀﾞｳﾝﾘｽﾄ!$K$2,\"特定\",IF('追加第三面（複数棟用）'!$B$16=ﾌﾟﾙﾀﾞｳﾝﾘｽﾄ!$K$4,\"特定増改築\",\"\"))","v":""}]
[null,"予約票兼申込書-構造計算基準⑤",{"$f":"IF('追加第三面（複数棟用）'!$B$60=ﾌﾟﾙﾀﾞｳﾝﾘｽﾄ!$K$2,\"特定\",IF('追加第三面（複数棟用）'!$B$61=ﾌﾟﾙﾀﾞｳﾝﾘｽﾄ!$K$4,\"特定増改築\",\"\"))","v":""},null,null,"印刷部数",1]
[null,"予約票兼申込書-構造計算基準⑥",{"$f":"IF('追加第三面（複数棟用）'!$B$105=ﾌﾟﾙﾀﾞｳﾝﾘｽﾄ!$K$2,\"特定\",IF('追加第三面（複数棟用）'!$B$106=ﾌﾟﾙﾀﾞｳﾝﾘｽﾄ!$K$4,\"特定増改築\",\"\"))","v":""},null,null,null,2]
[null,"予約票兼申込書-構造計算基準⑦",{"$f":"IF('追加第三面（複数棟用）'!$B$150=ﾌﾟﾙﾀﾞｳﾝﾘｽﾄ!$K$2,\"特定\",IF('追加第三面（複数棟用）'!$B$151=ﾌﾟﾙﾀﾞｳﾝﾘｽﾄ!$K$4,\"特定増改築\",\"\"))","v":""},null,null,null,3]
[null,"印刷部数一括設定",2,null,null,null,4]
[null,null,null,null,null,null,5]

{"sheet":"●　入力ﾌｫｰﾑ　●","index":2,"n_rows":162,"n_cols":8,"rows_kept":162,"cut":false,"hidden":false,"merged":[[148,2,148,4],[133,2,135,4],[44,2,44,3],[45,1,46,1],[37,2,37,7],[161,2,163,4],[149,2,149,4],[152,2,152,3],[136,0,163,0],[141,3,141,4],[154,2,154,5],[155,3,155,4],[156,2,156,3],[98,2,98,5],[80,0,107,0],[100,2,100,3],[120,2,120,4],[121,2,121,4],[124,2,124,3],[126,2,126,5],[105,2,107,4],[108,0,135,0],[113,3,113,4],[115,2,115,3],[115,4,117,7],[85,6,85,7],[141,6,141,7],[143,2,143,3],[143,4,145,7],[144,2,144,3],[146,2,146,4],[147,2,147,4],[127,3,127,4],[128,2,128,3],[87,2,87,3],[96,2,96,3],[25,0,33,0],[73,3,73,4],[73,6,73,7],[70,0,72,0],[74,3,74,4],[30,2,30,7],[39,2,39,7],[40,2,40,3],[78,0,79,0],[64,1,65,1],[73,0,75,0],[66,1,67,1],[68,1,69,1],[72,2,72,5],[62,3,62,4],[41,2,41,7],[46,2,46,7],[50,2,50,7],[61,0,61,2],[61,3,61,7],[27,1,28,1],[36,1,37,1],[34,0,42,0],[51,2,51,7],[1,4,1,7],[57,2,57,7],[116,2,116,3],[118,2,118,4],[119,2,119,4],[60,2,60,7],[64,3,64,4],[90,2,90,4],[91,2,91,4],[92,2,92,4],[88,2,88,3],[28,2,28,7],[113,6,113,7],[93,2,93,4],[99,3,99,4],[79,2,79,7],[70,3,70,7],[85,3,85,4],[78,2,78,7],[87,4,89,7],[76,2,76,3],[66,3,66,4],[71,3,71,7],[68,3,68,4],[0,0,0,7],[62,1,63,1],[3,0,9,0],[52,0,60,0],[54,1,55,1],[55,2,55,7],[58,2,58,3],[59,2,59,7],[10,0,24,0],[53,2,53,3],[12,1,13,1],[35,2,35,3],[17,2,17,4],[18,2,18,4],[19,2,19,4],[43,0,51,0],[33,2,33,7],[48,2,48,7],[49,2,49,3],[31,2,31,3],[32,2,32,7],[42,2,42,7],[1,0,1,1],[2,0,2,1],[3,2,3,7],[26,2,26,3],[9,2,9,3],[5,2,5,7],[16,2,16,3],[11,2,11,3],[13,2,13,7],[22,2,22,3],[23,2,23,3],[24,2,24,3],[21,2,21,3],[20,2,20,4],[8,2,8,7],[15,2,15,7],[4,2,4,4],[6,2,6,4]]}
["入力フォーム"]
["申請の区分",null,"判定申請",null,"←　該当する区分によって、申請書一面の書式シートが変更されます。\n　　計画変更は、三面（棟別）の-8に変更内容を記載して下さい。その内容が一面へ反映されます。"]
["日付",null,"申請日・委任日",null,null,"予約申込日"]
["建築主\n申請者氏名\n","社名のﾌﾘｶﾞﾅ"]
[null,"社名"]
[null,"氏名のﾌﾘｶﾞﾅ"]
[null,"氏名"]
[null,"郵便番号"]
[null,"住所"]
[null,"電話番号"]
["代理者","資格",null,"建築士",null,"登録","","号"]
[null,"氏名"]
[null,"建築士事務所名",null," 建築士事務所",null,"知事登録第","","号"]
[]
[null,"郵便番号"]
[null,"所在地"]
[null,"電話番号"]
[null,"委任区分","□　建築基準法第６条の３第１項の規定による判定申請"]
[null,null,"□　建築基準法第６条の３第１項の規定による計画変更判定申請"]
[null,null,"□　建築基準法第１８条第５項の規定による計画通知"]
[null,null,"□　建築基準法第１８条第５項の規定による計画変更通知"]
[null,null,"□　判定申請取下げ届"]
[null,null,"□　判定申請取止め届"]
[null,null,"□　計画通知取下げ届"]
[null,null,"□　計画通知取止め届"]
["代表となる\n設計者","【ｲ.資格】",null,"建築士",null,"登録","","号"]
[null,"【ﾛ.氏名】"]
[null,"【ﾊ.建築士事務所名】",null," 建築士事務所",null,"知事登録第","","号"]
[]
[null,"【ﾆ.郵便番号】"]
[null,"【ﾎ.所在地】"]
[null,"【ﾍ.電話番号】"]
[null,"【ﾄ.作成又は確認した\n設計図書】"]
[null,"該当が無い場合⇒\nこちらに直接入力下さい"]
["その他\n設計者1","【ｲ.資格】",null,"建築士",null,"登録","","号"]
[null,"【ﾛ.氏名】"]
[null,"【ﾊ.建築士事務所名】",null," 建築士事務所",null,"知事登録第","","号"]
[]
[null,"【ﾆ.郵便番号】"]
[null,"【ﾎ.所在地】"]
[null,"【ﾍ.電話番号】"]
[null,"【ﾄ.作成又は確認した\n設計図書】"]
[null,"該当が無い場合⇒\nこちらに直接入力下さい"]
["その他\n設計者2","【ｲ.資格】",null,"建築士",null,"登録","","号"]
[null,"【ﾛ.氏名】"]
[null,"【ﾊ.建築士事務所名】",null," 建築士事務所",null,"知事登録第","","号"]
[]
[null,"【ﾆ.郵便番号】"]
[null,"【ﾎ.所在地】"]
[null,"【ﾍ.電話番号】"]
[null,"【ﾄ.作成又は確認した\n設計図書】"]
[null,"該当が無い場合⇒\nこちらに直接入力下さい"]
["その他\n設計者3","【ｲ.資格】",null,"建築士",null,"登録","","号"]
[null,"【ﾛ.氏名】"]
[null,"【ﾊ.建築士事務所名】",null," 建築士事務所",null,"知事登録第","","号"]
[]
[null,"【ﾆ.郵便番号】"]
[null,"【ﾎ.所在地】"]
[null,"【ﾍ.電話番号】"]
[null,"【ﾄ.作成又は確認した\n設計図書】"]
[null,"該当が無い場合⇒\nこちらに直接入力下さい"]
["構造設計一級建築士である旨表示した者",null,null,"←　［関与を有しない構造・規模］*1の場合は、記入不要です。ただし、安全証明の添付が必要です。\n　　*1：法20条第1号、第2号、施行令36条の2第1号～5号、告示593号を参照"]
["□","建築士法第20条の2第1項の表示をした者","設計者氏名"]
[null,null,"構造１級番号","","号"]
[null,"建築士法第20条の2第1項の表示をした者","設計者氏名"]
[null,null,"構造１級番号","","号"]
["□","建築士法第20条の2第3項の表示をした者","設計者氏名"]
[null,null,"構造１級番号","","号"]
[null,"建築士法第20条の2第3項の表示をした者","設計者氏名"]
[null,null,"構造１級番号","","号"]
["敷地の位置","【ｲ.地名地番】","福岡県",""]
[null,null,null,""]
[null,"【ﾛ.住居表示】"]
["確認申請\n提出機関","■　未申請","機関名"]
[null,null,"所在地"]
[null,null,"担当者名",null,"様"]
["主要用途"]
["工事種別","□ 新築","□ 増築","□ 改築","□ 移転","□ 大規模の修繕","□ 大規模の模様替"]
["建物名称","【名称のフリガナ】"]
[null,"【建築物の名称\n　　　　又は工事名】"]
["建築物\n独立部分別\n概要①","1.番号","","棟名称",null,"棟用途"]
[null,"2.延べ面積",null,"㎡"]
[null,"3.建築物の高さ等","最高の高さ",null,"ｍ"]
[null,null,"最高の軒の高さ　",null,"ｍ"]
[null,null,"階数　　　　地上",null,"階","地下",null,"階"]
[null,null,"構造",null,null,"一部"]
[null,"4.特定構造計算基準又は特定増改築構造計算基準の別"]
[null,null,"□　特定構造計算基準"]
[null,null,"□　特定増改築構造計算基準"]
[null,"5.構造計算の区分"]
[null,null,"□　建築基準法施行令第81条第2項第1号イに掲げる構造計算"]
[null,null,"□　建築基準法施行令第81条第2項第1号ロに掲げる構造計算"]
[null,null,"□　建築基準法施行令第81条第2項第2号イに掲げる構造計算"]
[null,null,"□　建築基準法施行令第81条第3項に掲げる構造計算"]
[]
[null,"【6.構造計算に用いたプログラム】"]
[null,"【ｲ.名称】"]
[null,"【ﾛ.区分】"]
[null,null,"□　建築基準法第20条第1項第2号イ又は第3号イの認定を受けたプログラム"]
[null,null,"　（大臣認定番号",null,null,"）"]
[null,null,"□　その他のプログラム"]
[]
[null,"【7.建築基準法施行令第137条の2各号に掲げる範囲の区分】"]
[null,"（",null,"）"]
[]
[null,"【8.計画変更の概要】"]
[]
[]
["建築物\n独立部分別\n概要②","1.番号","","棟名称",null,"棟用途"]
[null,"2.延べ面積",null,"㎡"]
[null,"3.建築物の高さ等","最高の高さ",null,"ｍ"]
[null,null,"最高の軒の高さ　",null,"ｍ"]
[null,null,"階数　　　　地上",null,"階","地下",null,"階"]
[null,null,"構造",null,null,"一部"]
[null,"4.特定構造計算基準又は特定増改築構造計算基準の別"]
[null,null,"□　特定構造計算基準"]
[null,null,"□　特定増改築構造計算基準"]
[null,"5.構造計算の区分"]
[null,null,"□　建築基準法施行令第81条第2項第1号イに掲げる構造計算"]
[null,null,"□　建築基準法施行令第81条第2項第1号ロに掲げる構造計算"]
[null,null,"□　建築基準法施行令第81条第2項第2号イに掲げる構造計算"]
[null,null,"□　建築基準法施行令第81条第3項に掲げる構造計算"]
[]
[null,"【6.構造計算に用いたプログラム】"]
[null,"【ｲ.名称】"]
[null,"【ﾛ.区分】"]
[null,null,"□　建築基準法第20条第1項第2号イ又は第3号イの認定を受けたプログラム"]
[null,null,"　（大臣認定番号",null,null,"）"]
[null,null,"□　その他のプログラム"]
[]
[null,"【7.建築基準法施行令第137条の2各号に掲げる範囲の区分】"]
[null,"（",null,"）"]
[]
[null,"【8.計画変更の概要】"]
[]
[]
["建築物\n独立部分別\n概要③","1.番号","","棟名称",null,"棟用途"]
[null,"2.延べ面積",null,"㎡"]
[null,"3.建築物の高さ等","最高の高さ",null,"ｍ"]
[null,null,"最高の軒の高さ　",null,"ｍ"]
[null,null,"階数　　　　地上",null,"階","地下",null,"階"]
[null,null,"構造",null,null,"一部"]
[null,"4.特定構造計算基準又は特定増改築構造計算基準の別"]
[null,null,"□　特定構造計算基準"]
[null,null,"□　特定増改築構造計算基準"]
[null,"5.構造計算の区分"]
[null,null,"□　建築基準法施行令第81条第2項第1号イに掲げる構造計算"]
[null,null,"□　建築基準法施行令第81条第2項第1号ロに掲げる構造計算"]
[null,null,"□　建築基準法施行令第81条第2項第2号イに掲げる構造計算"]
[null,null,"□　建築基準法施行令第81条第3項に掲げる構造計算"]
[]
[null,"【6.構造計算に用いたプログラム】"]
[null,"【ｲ.名称】"]
[null,"【ﾛ.区分】"]
[null,null,"□　建築基準法第20条第1項第2号イ又は第3号イの認定を受けたプログラム"]
[null,null,"　（大臣認定番号",null,null,"）"]
[null,null,"□　その他のプログラム"]
[]
[null,"【7.建築基準法施行令第137条の2各号に掲げる範囲の区分】"]
[null,"（",null,"）"]
[]
[null,"【8.計画変更の概要】"]

{"sheet":"予約票兼申込書","index":3,"n_rows":91,"n_cols":84,"rows_kept":91,"cut":false,"hidden":false,"merged":[[8,49,8,58],[8,59,8,66],[8,67,8,75],[8,76,8,83],[9,15,9,17],[73,76,73,83],[74,76,74,83],[77,59,77,66],[76,15,76,17],[76,18,76,32],[76,33,76,40],[76,41,76,42],[76,43,76,45],[76,46,76,48],[76,49,76,58],[76,59,76,66],[76,67,76,75],[75,15,75,17],[75,18,75,32],[75,33,75,40],[75,41,75,42],[75,43,75,45],[75,46,75,48],[75,49,75,58],[78,59,78,66],[78,67,78,75],[32,2,32,14],[48,2,50,14],[6,56,6,83],[38,23,38,32],[38,34,38,35],[38,36,38,44],[38,45,38,46],[38,47,38,52],[38,54,38,55],[38,56,38,64],[38,15,38,19],[36,15,37,19],[37,82,37,83],[37,20,37,81],[7,18,7,32],[7,33,7,42],[7,43,7,45],[7,46,7,48],[8,46,8,48],[9,41,9,42],[9,43,9,45],[10,67,10,75],[81,41,81,42],[81,43,81,45],[81,46,81,48],[81,49,81,58],[78,15,78,17],[78,18,78,32],[78,33,78,40],[78,41,78,42],[78,43,78,45],[78,46,78,48],[78,49,78,58],[80,41,80,42],[80,43,80,45],[80,46,80,48],[80,49,80,58],[80,15,80,17],[80,18,80,32],[81,76,81,83],[80,76,80,83],[88,76,88,83],[86,41,86,42],[86,43,86,45],[86,46,86,48],[86,49,86,58],[86,59,86,66],[86,67,86,75],[86,76,86,83],[84,76,84,83],[85,76,85,83],[85,49,85,58],[85,59,85,66],[85,67,85,75],[84,49,84,58],[84,59,84,66],[84,67,84,75],[87,41,87,42],[87,43,87,45],[83,41,83,42],[82,41,82,42],[82,43,82,45],[82,46,82,48],[87,46,87,48],[87,49,87,58],[87,59,87,66],[87,67,87,75],[88,41,88,42],[88,43,88,45],[88,46,88,48],[88,49,88,58],[88,59,88,66],[88,67,88,75],[80,67,80,75],[81,59,81,66],[81,67,81,75],[82,15,82,17],[82,18,82,32],[82,33,82,40],[85,18,85,32],[85,33,85,40],[85,41,85,42],[85,43,85,45],[85,46,85,48],[82,49,82,58],[82,59,82,66],[82,67,82,75],[83,49,83,58],[83,15,83,17],[83,18,83,32],[83,33,83,40],[83,59,83,66],[83,67,83,75],[84,41,84,42],[84,43,84,45],[84,46,84,48],[81,15,81,17],[74,43,74,45],[74,46,74,48],[74,49,74,58],[74,59,74,66],[74,67,74,75],[77,41,77,42],[77,43,77,45],[77,46,77,48],[77,49,77,58],[70,76,70,83],[71,15,71,17],[71,18,71,32],[71,33,71,40],[71,41,71,42],[71,43,71,45],[71,46,71,48],[71,49,71,58],[70,15,70,17],[70,18,70,32],[70,33,70,40],[70,41,70,42],[70,43,70,45],[70,46,70,48],[70,49,70,58],[70,59,70,66],[70,67,70,75],[71,59,71,66],[71,67,71,75],[71,76,71,83],[72,46,72,48],[72,49,72,58],[72,59,72,66],[72,67,72,75],[72,76,72,83],[79,15,79,17],[79,18,79,32],[79,33,79,40],[77,33,77,40],[73,15,73,17],[73,18,73,32],[73,33,73,40],[75,59,75,66],[75,67,75,75],[77,18,77,32],[73,41,73,42],[73,43,73,45],[73,46,73,48],[73,49,73,58],[73,59,73,66],[73,67,73,75],[74,15,74,17],[74,18,74,32],[74,41,74,42],[89,41,89,42],[89,43,89,45],[89,46,89,48],[89,49,89,58],[89,59,89,66],[89,67,89,75],[89,76,89,83],[82,76,82,83],[75,76,75,83],[76,76,76,83],[77,67,77,75],[77,76,77,83],[78,76,78,83],[79,41,79,42],[79,43,79,45],[79,46,79,48],[79,49,79,58],[79,59,79,66],[79,67,79,75],[79,76,79,83],[87,76,87,83],[83,43,83,45],[83,46,83,48],[80,59,80,66],[83,76,83,83],[72,15,72,17],[72,18,72,32],[72,33,72,40],[72,41,72,42],[72,43,72,45],[68,15,68,17],[68,18,68,32],[68,43,68,45],[68,46,68,48],[68,49,68,58],[68,59,68,66],[68,67,68,75],[68,76,68,83],[68,33,68,42],[69,41,69,42],[69,43,69,45],[69,46,69,48],[69,49,69,58],[69,59,69,66],[69,67,69,75],[69,76,69,83],[74,33,74,40],[77,15,77,17],[69,3,89,14],[69,15,69,17],[69,18,69,32],[69,33,69,40],[89,15,89,17],[89,18,89,32],[89,33,89,40],[86,15,86,17],[86,18,86,32],[86,33,86,40],[84,15,84,17],[84,18,84,32],[84,33,84,40],[88,15,88,17],[88,18,88,32],[88,33,88,40],[85,15,85,17],[87,15,87,17],[87,18,87,32],[87,33,87,40],[80,33,80,40],[81,18,81,32],[81,33,81,40],[9,18,9,32],[9,33,9,40],[10,76,10,83],[68,2,68,14],[6,2,6,14],[6,16,6,42],[6,43,6,54],[0,2,0,83],[1,2,1,83],[4,3,4,82],[5,2,5,14],[5,17,5,29],[7,49,7,58],[7,59,7,66],[7,67,7,75],[7,76,7,83],[8,3,10,14],[8,15,8,17],[8,18,8,32],[8,33,8,40],[8,41,8,42],[8,43,8,45],[7,2,7,14],[7,15,7,17],[15,57,15,83],[12,52,13,56],[12,57,13,81],[12,82,13,83],[9,46,9,48],[9,49,9,58],[9,59,9,66],[9,67,9,75],[9,76,9,83],[10,46,10,48],[10,49,10,58],[10,59,10,66],[14,66,14,68],[11,15,12,19],[11,20,12,51],[11,52,11,56],[11,57,11,83],[11,2,12,14],[14,69,14,83],[10,15,10,17],[10,18,10,32],[10,33,10,40],[10,41,10,42],[10,43,10,45],[16,69,16,83],[13,22,13,32],[13,33,13,51],[17,4,17,5],[17,15,17,19],[17,20,17,49],[17,50,17,51],[17,52,17,56],[17,57,17,83],[16,2,16,14],[16,15,16,19],[16,20,16,51],[16,52,16,54],[16,55,16,65],[16,66,16,68],[13,3,15,14],[13,15,14,19],[13,20,13,21],[14,20,14,51],[14,52,14,54],[14,55,14,65],[15,15,15,19],[15,20,15,51],[15,52,15,56],[18,69,18,83],[19,15,19,19],[19,20,19,49],[19,50,19,51],[19,52,19,56],[19,57,19,83],[18,2,19,14],[18,15,18,19],[18,20,18,51],[18,52,18,54],[18,55,18,65],[18,66,18,68],[20,52,21,56],[20,57,21,63],[20,65,21,71],[21,20,21,25],[21,26,21,36],[21,38,21,40],[21,42,21,44],[20,2,21,14],[22,74,22,81],[22,20,22,51],[22,52,22,56],[20,15,21,19],[20,20,20,25],[20,26,20,36],[20,38,20,40],[20,42,20,44],[22,15,22,19],[33,3,35,14],[33,52,34,56],[22,2,23,14],[29,37,30,83],[24,2,25,14],[24,15,25,27],[24,28,25,39],[22,82,22,83],[22,69,22,73],[23,54,23,69],[24,62,25,69],[24,70,25,82],[29,2,29,36],[31,47,31,52],[31,54,31,55],[31,56,31,64],[23,15,23,19],[23,21,23,22],[23,23,23,27],[23,31,23,32],[23,33,23,37],[23,41,23,42],[23,43,23,49],[23,52,23,53],[24,40,25,48],[24,49,25,61],[31,23,31,31],[31,34,31,35],[31,36,31,43],[31,45,31,46],[31,15,31,19],[31,21,31,22],[22,57,22,68],[39,15,40,19],[39,20,40,51],[39,52,39,56],[39,57,39,83],[35,66,35,68],[35,69,35,83],[33,57,34,81],[33,82,34,83],[34,15,35,19],[34,20,34,21],[40,57,41,81],[40,82,41,83],[36,21,36,22],[36,23,36,32],[36,34,36,35],[36,36,36,44],[35,20,35,51],[35,52,35,54],[35,55,35,65],[32,15,33,19],[32,20,33,51],[32,52,32,56],[32,57,32,83],[56,58,56,70],[56,71,56,83],[42,52,42,54],[42,55,42,65],[41,20,41,21],[38,21,38,22],[34,22,34,32],[34,33,34,51],[36,54,36,55],[36,56,36,64],[36,45,36,46],[48,82,49,83],[49,15,50,19],[49,20,49,21],[50,20,50,51],[50,52,50,54],[50,55,50,65],[50,66,50,68],[50,69,50,83],[49,22,49,32],[48,57,49,81],[49,33,49,51],[2,66,2,81],[2,58,2,65],[48,15,48,19],[48,20,48,51],[48,52,49,56],[55,2,55,10],[47,15,47,19],[47,21,47,22],[41,22,41,32],[41,33,41,51],[47,34,47,35],[42,66,42,68],[42,69,42,83],[45,3,45,82],[46,2,46,14],[46,21,46,22],[46,23,46,29],[46,34,46,35],[36,47,36,52],[46,36,46,53],[40,3,42,14],[40,52,41,56],[41,15,42,19],[42,20,42,51]]}
[null,null,"KJH適判-運用別記第1号様式　"]
[null,null,"　構造計算適合性　判定申請予約票　兼　判定申請申込書"]
[null,null,null,null,null,null,null,null,null,null,null,null,null,null,null,null,null,null,null,null,null,null,null,null,null,null,null,null,null,null,null,null,null,null,null,null,null,null,null,null,null,null,null,null,null,null,null,null,null,null,null,null,null,null,null,null,null,null,"予約申込日：",null,null,null,null,null,null,null,{"$f":"IF(ISNUMBER('●　入力ﾌｫｰﾑ　●'!G3),'●　入力ﾌｫｰﾑ　●'!G3, \"　　　/　  　/　　\")","v":"　　　/　  　/　　"}]
[]
[null,null,null,"▼太枠内について該当するものにすべてチェック、又はご記入ください。　　受領後、予約メール送信者様へ電話又はメールにてご連絡致します。"]
[null,null," 申請の区分",null,null,null,null,null,null,null,null,null,null,null,null,null,null,{"$f":"'●　入力ﾌｫｰﾑ　●'!$C$2","v":"判定申請"}]
[null,null," 物件名称",null,null,null,null,null,null,null,null,null,null,null,null,null,{"$f":"'●　入力ﾌｫｰﾑ　●'!$C$80&\"\"","v":""},null,null,null,null,null,null,null,null,null,null,null,null,null,null,null,null,null,null,null,null,null,null,null,null,null,null,"　建築場所",null,null,null,null,null,null,null,null,null,null,null,null,{"$f":"DATA!$C$39&\"\"","v":"福岡県"}]
[null,null," 建築物概要",null,null,null,null,null,null,null,null,null,null,null,null,"番号",null,null,"用途",null,null,null,null,null,null,null,null,null,null,null,null,null,null,"面積",null,null,null,null,null,null,null,null,null,"地上\n階数",null,null,"地下\n階数",null,null,"構造",null,null,null,null,null,null,null,null,null,"構造計算基準",null,null,null,null,null,null,null,"プログラム名",null,null,null,null,null,null,null,null,"備考"]
[null,null,null,"判定対象の建築物について（複数棟ある場合はそれぞれ）ご記入ください。欄が不足する場合は別紙に記載しても構いません。",null,null,null,null,null,null,null,null,null,null,null,{"$f":"'●　入力ﾌｫｰﾑ　●'!$C$81&\"\"","v":""},null,null,{"$f":"IF('●　入力ﾌｫｰﾑ　●'!$G$81=\"\",'●　入力ﾌｫｰﾑ　●'!$E$81&\"\",'●　入力ﾌｫｰﾑ　●'!$G$81&\"\")","v":""},null,null,null,null,null,null,null,null,null,null,null,null,null,null,{"$f":"IF('●　入力ﾌｫｰﾑ　●'!$C$82=\"\",\"\",'●　入力ﾌｫｰﾑ　●'!$C$82)","v":""},null,null,null,null,null,null,null,"㎡",null,{"$f":"'●　入力ﾌｫｰﾑ　●'!$D$85&\"\"","v":""},null,null,{"$f":"'●　入力ﾌｫｰﾑ　●'!$G$85&\"\"","v":""},null,null,{"$f":"'●　入力ﾌｫｰﾑ　●'!$D$86&\"\"","v":""},null,null,null,null,null,null,null,null,null,{"$f":"DATA!$C$31&\"\"","v":""},null,null,null,null,null,null,null,{"$f":"'●　入力ﾌｫｰﾑ　●'!$C$97&\"\"","v":""}]
[null,null,null,null,null,null,null,null,null,null,null,null,null,null,null,{"$f":"'●　入力ﾌｫｰﾑ　●'!$C$109&\"\"","v":""},null,null,{"$f":"IF('●　入力ﾌｫｰﾑ　●'!$G$109=\"\",'●　入力ﾌｫｰﾑ　●'!$E$109&\"\",'●　入力ﾌｫｰﾑ　●'!$G$109&\"\")","v":""},null,null,null,null,null,null,null,null,null,null,null,null,null,null,{"$f":"IF('●　入力ﾌｫｰﾑ　●'!$C$110=\"\",\"\",'●　入力ﾌｫｰﾑ　●'!$C$110)","v":""},null,null,null,null,null,null,null,"㎡",null,{"$f":"'●　入力ﾌｫｰﾑ　●'!$D$113&\"\"","v":""},null,null,{"$f":"'●　入力ﾌｫｰﾑ　●'!$G$113&\"\"","v":""},null,null,{"$f":"'●　入力ﾌｫｰﾑ　●'!$D$114&\"\"","v":""},null,null,null,null,null,null,null,null,null,{"$f":"DATA!$C$32&\"\"","v":""},null,null,null,null,null,null,null,{"$f":"'●　入力ﾌｫｰﾑ　●'!$C$125&\"\"","v":""}]
[null,null,null,null,null,null,null,null,null,null,null,null,null,null,null,{"$f":"'●　入力ﾌｫｰﾑ　●'!$C$137&\"\"","v":""},null,null,{"$f":"IF('●　入力ﾌｫｰﾑ　●'!$G$137=\"\",'●　入力ﾌｫｰﾑ　●'!$E$137&\"\",'●　入力ﾌｫｰﾑ　●'!$G$137&\"\")","v":""},null,null,null,null,null,null,null,null,null,null,null,null,null,null,{"$f":"IF('●　入力ﾌｫｰﾑ　●'!$C$138=\"\",\"\",'●　入力ﾌｫｰﾑ　●'!$C$138)","v":""},null,null,null,null,null,null,null,"㎡",null,{"$f":"'●　入力ﾌｫｰﾑ　●'!$D$141&\"\"","v":""},null,null,{"$f":"'●　入力ﾌｫｰﾑ　●'!$G$141&\"\"","v":""},null,null,{"$f":"'●　入力ﾌｫｰﾑ　●'!$D$142&\"\"","v":""},null,null,null,null,null,null,null,null,null,{"$f":"DATA!$C$33&\"\"","v":""},null,null,null,null,null,null,null,{"$f":"'●　入力ﾌｫｰﾑ　●'!$C$153&\"\"","v":""}]
[null,null," 申込担当者\n （指摘対応者①）",null,null,null,null,null,null,null,null,null,null,null,null,"会社名",null,null,null,null,null,null,null,null,null,null,null,null,null,null,null,null,null,null,null,null,null,null,null,null,null,null,null,null,null,null,null,null,null,null,null,null,"ﾌﾘｶﾞﾅ"]
[null,null,null,null,null,null,null,null,null,null,null,null,null,null,null,null,null,null,null,null,null,null,null,null,null,null,null,null,null,null,null,null,null,null,null,null,null,null,null,null,null,null,null,null,null,null,null,null,null,null,null,null,"ご氏名",null,null,null,null,null,null,null,null,null,null,null,null,null,null,null,null,null,null,null,null,null,null,null,null,null,null,null,null,null,"様"]
[null,null,null,null,null,null,null,null,null,null,null,null,null,null,null,"住　所",null,null,null,null,"〒"]
[null,null,null,null,null,null,null,null,null,null,null,null,null,null,null,null,null,null,null,null,null,null,null,null,null,null,null,null,null,null,null,null,null,null,null,null,null,null,null,null,null,null,null,null,null,null,null,null,null,null,null,null,"TEL"]
[null,null,null,null,null,null,null,null,null,null,null,null,null,null,null,"E-mail",null,null,null,null,null,null,null,null,null,null,null,null,null,null,null,null,null,null,null,null,null,null,null,null,null,null,null,null,null,null,null,null,null,null,null,null,"携帯"]
[null,null," 構造設計者 \n（指摘対応者②）",null,null,null,null,null,null,null,null,null,null,null,null,"会社名",null,null,null,null,null,null,null,null,null,null,null,null,null,null,null,null,null,null,null,null,null,null,null,null,null,null,null,null,null,null,null,null,null,null,null,null,"TEL"]
[null,null,null,null,"□",null,"申込担当者に同じ",null,null,null,null,null,null,null,null,"ご氏名",null,null,null,null,null,null,null,null,null,null,null,null,null,null,null,null,null,null,null,null,null,null,null,null,null,null,null,null,null,null,null,null,null,null,"様",null,"E-mail"]
[null,null," 上記以外の\n 指摘対応者③",null,null,null,null,null,null,null,null,null,null,null,null,"会社名",null,null,null,null,null,null,null,null,null,null,null,null,null,null,null,null,null,null,null,null,null,null,null,null,null,null,null,null,null,null,null,null,null,null,null,null,"TEL"]
[null,null,null,null,null,null,null,null,null,null,null,null,null,null,null,"ご氏名",null,null,null,null,null,null,null,null,null,null,null,null,null,null,null,null,null,null,null,null,null,null,null,null,null,null,null,null,null,null,null,null,null,null,"様",null,"E-mail"]
[null,null," 申請方法・申請日時",null,null,null,null,null,null,null,null,null,null,null,null,"窓口",null,null,null,null,"第1希望",null,null,null,null,null,null,null,null,null,null,null,null,null,null,null,null,null,null,null,null,":",null,null,null,null,null,null,null,null,null,null,"宅配便"]
[null,null,null,null,null,null,null,null,null,null,null,null,null,null,null,null,null,null,null,null,"第2希望",null,null,null,null,null,null,null,null,null,null,null,null,null,null,null,null,null,null,null,null,":"]
[null,null," 確認申請先・審査状況",null,null,null,null,null,null,null,null,null,null,null,null,"機関名",null,null,null,null,{"$f":"'●　入力ﾌｫｰﾑ　●'!$D$74&\"\"","v":""}]
[null,null,null,null,null,null,null,null,null,null,null,null,null,null,null,"審査状況",null,null,null,null,null,"□",null,"未申請",null,null,null,null,null,null,null,"□",null,"未質疑",null,null,null,null,null,null,null,"□",null,"質疑対応済み",null,null,null,null,null,null,null,null,"□",null,"主事等による質疑回答確認済み"]
[null,null," スケジュールについての\n ご要望　※２",null,null,null,null,null,null,null,null,null,null,null,null,"指摘事項の送付希望日",null,null,null,null,null,null,null,null,null,null,null,null,null,null,null,null,null,null,null,null,null,null,null,null,"判定済希望日",null,null,null,null,null,null,null,null,null,null,null,null,null,null,null,null,null,null,null,null,null,"確認済予定日"]
[]
[null,null,null,null,"※１　「適合するかどうかを決定することができない旨の通知書」の理由書（指摘事項）を送付いたしますので、必ずご記入下さい。（申込担当者・構造設計者を含めた計3名までとさせて頂きます。）"]
[null,null,null,null,"※２　指摘事項の送付及び判定通知書の交付を保証するものではありませんのでご了承ください。"]
[]
[null,null,"　引受承諾書送付先・交付書類受取方法",null,null,null,null,null,null,null,null,null,null,null,null,null,null,null,null,null,null,null,null,null,null,null,null,null,null,null,null,null,null,null,null,null,null,"＊「一括請求申込書」ご提出済のお客様は会社名（支店・支社・営業所名まで）のみ\n　ご記入ください。"]
[null,null,null,"▼引受承諾書（請求書）の送付先をご記入ください。"]
[null,null,null,null,null,null,null,null,null,null,null,null,null,null,null,"送付先",null,null,null,null,null,"□",null,"申請者（建築主）",null,null,null,null,null,null,null,null,null,null,"□",null,"申込担当者",null,null,null,null,null,null,null,null,"□",null,"代理者",null,null,null,null,null,null,"□",null,"左記以外（下欄）"]
[null,null," 引受承諾書送付先　※３",null,null,null,null,null,null,null,null,null,null,null,null,"会社名",null,null,null,null,"　引受承諾書送付先までが必須入力です。",null,null,null,null,null,null,null,null,null,null,null,null,null,null,null,null,null,null,null,null,null,null,null,null,null,null,null,null,null,null,null,"ﾌﾘｶﾞﾅ"]
[null,null,null,"＊引受承諾書を請求書に代えて送付致します。\n別途請求書が必要な場合は請求書送付先・宛名欄にご記入下さい。",null,null,null,null,null,null,null,null,null,null,null,null,null,null,null,null,null,null,null,null,null,null,null,null,null,null,null,null,null,null,null,null,null,null,null,null,null,null,null,null,null,null,null,null,null,null,null,null,"ご氏名",null,null,null,null,null,null,null,null,null,null,null,null,null,null,null,null,null,null,null,null,null,null,null,null,null,null,null,null,null,"様"]
[null,null,null,null,null,null,null,null,null,null,null,null,null,null,null,"住　所",null,null,null,null,"〒"]
[null,null,null,null,null,null,null,null,null,null,null,null,null,null,null,null,null,null,null,null,null,null,null,null,null,null,null,null,null,null,null,null,null,null,null,null,null,null,null,null,null,null,null,null,null,null,null,null,null,null,null,null,"TEL"]
[null,null,null,null,null,null,null,null,null,null,null,null,null,null,null,"宛名",null,null,null,null,null,"□",null,"申請者（建築主）",null,null,null,null,null,null,null,null,null,null,"□",null,"申込担当者",null,null,null,null,null,null,null,null,"□",null,"代理者",null,null,null,null,null,null,"□",null,"左記以外（下欄）"]
[null,null,"　請求書　※３",null,null,null,null,null,null,null,null,null,null,null,null,null,null,null,null,null,null,null,null,null,null,null,null,null,null,null,null,null,null,null,null,null,null,null,null,null,null,null,null,null,null,null,null,null,null,null,null,null,null,null,null,null,null,null,null,null,null,null,null,null,null,null,null,null,null,null,null,null,null,null,null,null,null,null,null,null,null,null,"様"]
[null,null,null,null,null,null,null,null,null,null,null,null,null,null,null,"送付先",null,null,null,null,null,"□",null,"申請者（建築主）",null,null,null,null,null,null,null,null,null,null,"□",null,"申込担当者",null,null,null,null,null,null,null,null,"□",null,"代理者",null,null,null,null,null,null,"□",null,"左記以外（下欄）"]
[null,null,null,null,null,null,null,null,null,null,null,null,null,null,null,"送付先\n（会社名）",null,null,null,null,null,null,null,null,null,null,null,null,null,null,null,null,null,null,null,null,null,null,null,null,null,null,null,null,null,null,null,null,null,null,null,null,"ﾌﾘｶﾞﾅ"]
[null,null,null,"*必要な場合、記入して下さい。\n*引受承諾書送付先と異なる\n場合は、写しを添付致します。",null,null,null,null,null,null,null,null,null,null,null,null,null,null,null,null,null,null,null,null,null,null,null,null,null,null,null,null,null,null,null,null,null,null,null,null,null,null,null,null,null,null,null,null,null,null,null,null,"ご氏名",null,null,null,null,null,null,null,null,null,null,null,null,null,null,null,null,null,null,null,null,null,null,null,null,null,null,null,null,null,"様"]
[null,null,null,null,null,null,null,null,null,null,null,null,null,null,null,"住　所",null,null,null,null,"〒"]
[null,null,null,null,null,null,null,null,null,null,null,null,null,null,null,null,null,null,null,null,"",null,null,null,null,null,null,null,null,null,null,null,null,null,null,null,null,null,null,null,null,null,null,null,null,null,null,null,null,null,null,null,"TEL"]
[null,null,null,null,"※３　引受承諾書を請求書に代えて送付致します。請求書が必要な場合は請求書送付先・宛名欄にご記入下さい。"]
[]
[null,null,null,"▼交付書類（届出等の返却含む）の受取方法及び送付先をご記入ください。"]
[null,null,"　受取方法　※４",null,null,null,null,null,null,null,null,null,null,null,null,null,null,null,null,null,null,"□",null,"窓口にて受理",null,null,null,null,null,null,null,null,null,null,"□",null,"宅配にて受理（下欄の送付先）"]
[null,null,null,null,null,null,null,null,null,null,null,null,null,null,null,"送付先",null,null,null,null,null,"□",null,"確認検査機関　※５",null,null,null,null,null,null,null,null,null,null,"□",null,"左記以外（下欄）"]
[null,null,"　宅配受取による　\n　交付書類送付先",null,null,null,null,null,null,null,null,null,null,null,null,"会社名",null,null,null,null,null,null,null,null,null,null,null,null,null,null,null,null,null,null,null,null,null,null,null,null,null,null,null,null,null,null,null,null,null,null,null,null,"ご氏名",null,null,null,null,null,null,null,null,null,null,null,null,null,null,null,null,null,null,null,null,null,null,null,null,null,null,null,null,null,"様"]
[null,null,null,null,null,null,null,null,null,null,null,null,null,null,null,"住　所",null,null,null,null,"〒"]
[null,null,null,null,null,null,null,null,null,null,null,null,null,null,null,null,null,null,null,null,null,null,null,null,null,null,null,null,null,null,null,null,null,null,null,null,null,null,null,null,null,null,null,null,null,null,null,null,null,null,null,null,"TEL"]
[null,null,null,null,"※４　通知書等の交付にあたり、判定手数料のお振込み状況を確認させて頂きますので、ご留意願います。"]
[null,null,null,null,"※５　運用別記第22号様式「送付依頼書」を提出された場合は、確認機関等へ直接お送りします。"]
[]
[]
[null,null,"◆KJH記入欄"]
[null,null,null,null,null,null,null,null,null,null,null,null,null,null,null,null,null,null,null,null,null,null,null,null,null,null,null,null,null,null,null,null,null,null,null,null,null,null,null,null,null,null,null,null,null,null,null,null,null,null,null,null,null,null,null,null,null,null,"予約受付印",null,null,null,null,null,null,null,null,null,null,null,null,"受付印"]
[null,null,null,null,"□並行　/　□直列",null,null,null,null,null,null,null,null,null,null,null,null,null,null,null,null,null,"□　申請ツール提出依頼中",null,null,null,null,null,null,null,null,null,null,null,null,null,null,null,null,null,"□　調整可"]
[]
[null,null,null,"備考欄"]
[]
[]
[]
[]
[null,null,null,null,null,null,null,null,null,null,null,null,null,null,null,null,null,null,null,null,null,null,null,null,null,null,null,null,null,null,null,null,null,null,null,null,null,null,null,null,null,null,null,null,null,null,null,null,null,null,null,null,null,null,null,null,null,null,null,null,null,null,null,null,null,null,null,null,null,null,null,null,null,null,null,null,null,null,null,null,null,null,null,"九州住宅保証株式会社　202507"]
[null,null,null,null,null,null,null,null,null,null,null,null,null,null,null,null,null,null,null,null,null,null,null,null,null,null,null,null,null,null,null,null,null,null,null,null,null,null,null,null,null,null,null,null,null,null,null,null,null,null,null,null,null,null,null,null,null,null,null,null,null,null,null,null,null,null,null,null,null,null,null,null,null,null,null,null,null,null,null,null,null,null,null,"KJH適判-運用別記第1号様式"]
[null,null,null,"別紙"]
[]
[null,null," 建築物概要",null,null,null,null,null,null,null,null,null,null,null,null,"番号",null,null,"用途",null,null,null,null,null,null,null,null,null,null,null,null,null,null,"面積",null,null,null,null,null,null,null,null,null,"地上\n階数",null,null,"地下\n階数",null,null,"構造",null,null,null,null,null,null,null,null,null,"構造計算基準",null,null,null,null,null,null,null,"プログラム名",null,null,null,null,null,null,null,null,"備考"]
[null,null,null,"判定対象の建築物について（複数棟ある場合はそれぞれ）ご記入ください。欄が不足する場合は別紙に記載しても構いません。",null,null,null,null,null,null,null,null,null,null,null,{"$f":"'追加第三面（複数棟用）'!$D$4&\"\"","v":""},null,null,{"$f":"IF('追加第三面（複数棟用）'!$P$4=\"\",'追加第三面（複数棟用）'!$J$4&\"\",'追加第三面（複数棟用）'!$P$4)","v":""},null,null,null,null,null,null,null,null,null,null,null,null,null,null,{"$f":"IF('追加第三面（複数棟用）'!$E$6=\"\",\"\",'追加第三面（複数棟用）'!$E$6)","v":""},null,null,null,null,null,null,null,"㎡",null,{"$f":"'追加第三面（複数棟用）'!$F$11&\"\"","v":""},null,null,{"$f":"'追加第三面（複数棟用）'!$L$11&\"\"","v":""},null,null,{"$f":"'追加第三面（複数棟用）'!$D$12&\"\"","v":""},null,null,null,null,null,null,null,null,null,{"$f":"DATA!$C$42&\"\"","v":""},null,null,null,null,null,null,null,{"$f":"'追加第三面（複数棟用）'!$D$25&\"\"","v":""}]
[null,null,null,null,null,null,null,null,null,null,null,null,null,null,null,{"$f":"'追加第三面（複数棟用）'!$D$49&\"\"","v":""},null,null,{"$f":"IF('追加第三面（複数棟用）'!$P$49=\"\",'追加第三面（複数棟用）'!$J$49&\"\",'追加第三面（複数棟用）'!$P$49)","v":""},null,null,null,null,null,null,null,null,null,null,null,null,null,null,{"$f":"IF('追加第三面（複数棟用）'!$E$51=\"\",\"\",'追加第三面（複数棟用）'!$E$51)","v":""},null,null,null,null,null,null,null,"㎡",null,{"$f":"'追加第三面（複数棟用）'!$F$56&\"\"","v":""},null,null,{"$f":"'追加第三面（複数棟用）'!$L$56&\"\"","v":""},null,null,{"$f":"'追加第三面（複数棟用）'!$D$57&\"\"","v":""},null,null,null,null,null,null,null,null,null,{"$f":"DATA!$C$43&\"\"","v":""},null,null,null,null,null,null,null,{"$f":"'追加第三面（複数棟用）'!$D$70&\"\"","v":""}]
[null,null,null,null,null,null,null,null,null,null,null,null,null,null,null,{"$f":"'追加第三面（複数棟用）'!$D$94&\"\"","v":""},null,null,{"$f":"IF('追加第三面（複数棟用）'!$P$94=\"\",'追加第三面（複数棟用）'!$J$94&\"\",'追加第三面（複数棟用）'!$P$94)","v":""},null,null,null,null,null,null,null,null,null,null,null,null,null,null,{"$f":"IF('追加第三面（複数棟用）'!$E$96=\"\",\"\",'追加第三面（複数棟用）'!$E$96)","v":""},null,null,null,null,null,null,null,"㎡",null,{"$f":"'追加第三面（複数棟用）'!$F$101&\"\"","v":""},null,null,{"$f":"'追加第三面（複数棟用）'!$L$101&\"\"","v":""},null,null,{"$f":"'追加第三面（複数棟用）'!$D$102&\"\"","v":""},null,null,null,null,null,null,null,null,null,{"$f":"DATA!$C$44&\"\"","v":""},null,null,null,null,null,null,null,{"$f":"'追加第三面（複数棟用）'!$D$115&\"\"","v":""}]
[null,null,null,null,null,null,null,null,null,null,null,null,null,null,null,{"$f":"'追加第三面（複数棟用）'!$D$139&\"\"","v":""},null,null,{"$f":"IF('追加第三面（複数棟用）'!$P$139=\"\",'追加第三面（複数棟用）'!$J$139&\"\",'追加第三面（複数棟用）'!$P$139)","v":""},null,null,null,null,null,null,null,null,null,null,null,null,null,null,{"$f":"IF('追加第三面（複数棟用）'!$E$141=\"\",\"\",'追加第三面（複数棟用）'!$E$141)","v":""},null,null,null,null,null,null,null,"㎡",null,{"$f":"'追加第三面（複数棟用）'!$F$146&\"\"","v":""},null,null,{"$f":"'追加第三面（複数棟用）'!$L$146&\"\"","v":""},null,null,{"$f":"'追加第三面（複数棟用）'!$D$147&\"\"","v":""},null,null,null,null,null,null,null,null,null,{"$f":"DATA!$C$45&\"\"","v":""},null,null,null,null,null,null,null,{"$f":"'追加第三面（複数棟用）'!$D$160&\"\"","v":""}]
[null,null,null,null,null,null,null,null,null,null,null,null,null,null,null,null,null,null,null,null,null,null,null,null,null,null,null,null,null,null,null,null,null,null,null,null,null,null,null,null,null,"㎡"]
[null,null,null,null,null,null,null,null,null,null,null,null,null,null,null,null,null,null,null,null,null,null,null,null,null,null,null,null,null,null,null,null,null,null,null,null,null,null,null,null,null,"㎡"]
[null,null,null,null,null,null,null,null,null,null,null,null,null,null,null,null,null,null,null,null,null,null,null,null,null,null,null,null,null,null,null,null,null,null,null,null,null,null,null,null,null,"㎡"]
[null,null,null,null,null,null,null,null,null,null,null,null,null,null,null,null,null,null,null,null,null,null,null,null,null,null,null,null,null,null,null,null,null,null,null,null,null,null,null,null,null,"㎡"]
[null,null,null,null,null,null,null,null,null,null,null,null,null,null,null,null,null,null,null,null,null,null,null,null,null,null,null,null,null,null,null,null,null,null,null,null,null,null,null,null,null,"㎡"]
[null,null,null,null,null,null,null,null,null,null,null,null,null,null,null,null,null,null,null,null,null,null,null,null,null,null,null,null,null,null,null,null,null,null,null,null,null,null,null,null,null,"㎡"]
[null,null,null,null,null,null,null,null,null,null,null,null,null,null,null,null,null,null,null,null,null,null,null,null,null,null,null,null,null,null,null,null,null,null,null,null,null,null,null,null,null,"㎡"]
[null,null,null,null,null,null,null,null,null,null,null,null,null,null,null,null,null,null,null,null,null,null,null,null,null,null,null,null,null,null,null,null,null,null,null,null,null,null,null,null,null,"㎡"]
[null,null,null,null,null,null,null,null,null,null,null,null,null,null,null,null,null,null,null,null,null,null,null,null,null,null,null,null,null,null,null,null,null,null,null,null,null,null,null,null,null,"㎡"]
[null,null,null,null,null,null,null,null,null,null,null,null,null,null,null,null,null,null,null,null,null,null,null,null,null,null,null,null,null,null,null,null,null,null,null,null,null,null,null,null,null,"㎡"]
[null,null,null,null,null,null,null,null,null,null,null,null,null,null,null,null,null,null,null,null,null,null,null,null,null,null,null,null,null,null,null,null,null,null,null,null,null,null,null,null,null,"㎡"]
[null,null,null,null,null,null,null,null,null,null,null,null,null,null,null,null,null,null,null,null,null,null,null,null,null,null,null,null,null,null,null,null,null,null,null,null,null,null,null,null,null,"㎡"]
[null,null,null,null,null,null,null,null,null,null,null,null,null,null,null,null,null,null,null,null,null,null,null,null,null,null,null,null,null,null,null,null,null,null,null,null,null,null,null,null,null,"㎡"]
[null,null,null,null,null,null,null,null,null,null,null,null,null,null,null,null,null,null,null,null,null,null,null,null,null,null,null,null,null,null,null,null,null,null,null,null,null,null,null,null,null,"㎡"]
[null,null,null,null,null,null,null,null,null,null,null,null,null,null,null,null,null,null,null,null,null,null,null,null,null,null,null,null,null,null,null,null,null,null,null,null,null,null,null,null,null,"㎡"]
[null,null,null,null,null,null,null,null,null,null,null,null,null,null,null,null,null,null,null,null,null,null,null,null,null,null,null,null,null,null,null,null,null,null,null,null,null,null,null,null,null,"㎡"]
[null,null,null,null,null,null,null,null,null,null,null,null,null,null,null,null,null,null,null,null,null,null,null,null,null,null,null,null,null,null,null,null,null,null,null,null,null,null,null,null,null,"㎡"]
[null,null,null,null,null,null,null,null,null,null,null,null,null,null,null,null,null,null,null,null,null,null,null,null,null,null,null,null,null,null,null,null,null,null,null,null,null,null,null,null,null,null,null,null,null,null,null,null,null,null,null,null,null,null,null,null,null,null,null,null,null,null,null,null,null,null,null,null,null,null,null,null,null,null,null,null,null,null,null,null,null,null,null,"九州住宅保証株式会社　202507"]

{"sheet":"判定申請一面","index":4,"n_rows":52,"n_cols":20,"rows_kept":52,"cut":false,"hidden":false,"merged":[[33,11,33,18],[12,0,12,19],[14,0,14,19],[16,0,16,19],[5,0,5,19],[9,0,9,19],[32,7,32,9],[25,14,25,19],[28,11,28,18],[29,11,29,18],[32,11,32,18]]}
[]
["第１８号の２様式（第３条の７、第３条の１０関係）　（Ａ４）"]
[]
[]
[]
["構造計算適合性判定申請書"]
[]
[]
[]
["（第一面）"]
[]
[]
["　建築基準法第６条の３第１項（同法第１８条の２第４項の規定により読み替えて適用される場合\n"]
[]
["を含む。）の規定による構造計算適合性判定を申請します。この申請書及び添付図書に記載の事"]
[]
["項は、事実に相違ありません。\n"]
[]
[]
[]
[]
["九州住宅保証株式会社"]
[]
["代表取締役　吉田 勲　様"]
[]
[null,null,null,null,null,null,null,null,null,null,null,null,null,null,{"$f":"IF(ISNUMBER('●　入力ﾌｫｰﾑ　●'!D3),'●　入力ﾌｫｰﾑ　●'!D3, TEXT(TODAY(),\"[$-411]ggg\")&\"　 　年　　月　　日\")","v":"令和　 　年　　月　　日"}]
[]
[]
[null,null,null,null,null,null,null,"申請者氏名",null,null,null,{"$f":"'●　入力ﾌｫｰﾑ　●'!$C$5&\"\"","v":""}]
[null,null,null,null,null,null,null,null,null,null,null,{"$f":"'●　入力ﾌｫｰﾑ　●'!$C$7&\"\"","v":""}]
[]
[]
[null,null,null,null,null,null,null,"設計者氏名",null,null,null,{"$f":"'●　入力ﾌｫｰﾑ　●'!$C$29&\"\"","v":""}]
[null,null,null,null,null,null,null,null,null,null,null,{"$f":"'●　入力ﾌｫｰﾑ　●'!$C$27&\"\"","v":""}]
[]
[]
[]
[]
[]
[]
[]
[]
[]
["※手数料欄"]
[]
[]
["※受付欄",null,null,null,null,null,"※決裁欄",null,null,null,null,null,null,null,"※適合判定通知書番号欄"]
[" 令和　    年      月    　日",null,null,null,null,null,null,null,null,null,null,null,null,null," 令和　    年      月     日"]
[]
[" 第",null,null,null,null,"号",null,null,null,null,null,null,null,null," 第",null,null,null,null,"号"]
[]
[" 係員氏名",null,null,null,null,null,null,null,null,null,null,null,null,null," 係員氏名"]

{"sheet":"計画通知一面","index":5,"n_rows":52,"n_cols":20,"rows_kept":52,"cut":false,"hidden":true,"merged":[[3,0,3,19],[5,0,5,19],[9,0,9,19],[32,7,32,9],[32,11,32,18],[33,11,33,18],[12,0,12,19],[14,0,14,19],[16,0,16,19],[25,14,25,19],[28,11,28,18],[29,11,29,18]]}
[]
["第４２号の１２の２様式（第８条の２の２及び第８条の２の３関係）　（Ａ４）"]
[]
["建築基準法第１８条第５項の規定による"]
[]
["計 画 通 知 書"]
[]
[]
[]
["（第一面）"]
[]
[]
["　建築基準法第１８条第５項（同法第１８条の２第４項の規定により読み替えて適用される場合\n"]
[]
["を含む。）の規定により計画を通知します。"]
[]
[]
[]
[]
[]
[]
["九州住宅保証株式会社"]
[]
["代表取締役　吉田 勲　様"]
[]
[null,null,null,null,null,null,null,null,null,null,null,null,null,null,{"$f":"IF(ISNUMBER('●　入力ﾌｫｰﾑ　●'!D3),'●　入力ﾌｫｰﾑ　●'!D3, TEXT(TODAY(),\"[$-411]ggg\")&\"　 　年　　月　　日\")","v":"令和　 　年　　月　　日"}]
[]
[]
[null,null,null,null,null,null,null,"通知者官職",null,null,null,{"$f":"'●　入力ﾌｫｰﾑ　●'!$C$5&\"\"","v":""}]
[null,null,null,null,null,null,null,null,null,null,null,{"$f":"'●　入力ﾌｫｰﾑ　●'!$C$7&\"\"","v":""}]
[]
[]
[null,null,null,null,null,null,null,"設計者氏名",null,null,null,{"$f":"'●　入力ﾌｫｰﾑ　●'!$C$29&\"\"","v":""}]
[null,null,null,null,null,null,null,null,null,null,null,{"$f":"'●　入力ﾌｫｰﾑ　●'!$C$27&\"\"","v":""}]
[]
[]
[]
[]
[]
[]
[]
[]
[]
["※手数料欄"]
[]
[]
["※受付欄",null,null,null,null,null,"※決裁欄",null,null,null,null,null,null,null,"※適合判定通知書番号欄"]
[" 令和　    年      月    　日",null,null,null,null,null,null,null,null,null,null,null,null,null," 令和　    年      月     日"]
[]
[" 第",null,null,null,null,"号",null,null,null,null,null,null,null,null," 第",null,null,null,null,"号"]
[]
[" 係員氏名",null,null,null,null,null,null,null,null,null,null,null,null,null," 係員氏名"]

{"sheet":"計画変更一面","index":6,"n_rows":52,"n_cols":20,"rows_kept":52,"cut":false,"hidden":true,"merged":[[25,14,25,19],[5,0,5,19],[9,0,9,19],[12,0,12,19],[14,0,14,19],[16,0,16,19],[39,8,41,18],[36,11,36,13],[28,11,28,18],[29,11,29,18],[32,7,32,9],[32,11,32,18],[33,11,33,18]]}
[]
["第１８号の３様式（第３条の７、第３条の１０関係）　（Ａ４）"]
[]
[]
[]
["計画変更構造計算適合性判定申請書"]
[]
[]
[]
["（第一面）"]
[]
[]
["　建築基準法第６条の３第１項（同法第１８条の２第４項の規定により読み替えて適用される場"]
[]
["合を含む。）の規定による計画の変更の構造計算適合性判定を申請します。この申請書及び添付"]
[]
["図書に記載の事項は、事実に相違ありません。\n"]
[]
[]
[]
[]
["九州住宅保証株式会社"]
[]
["代表取締役　吉田 勲　様"]
[]
[null,null,null,null,null,null,null,null,null,null,null,null,null,null,{"$f":"IF(ISNUMBER('●　入力ﾌｫｰﾑ　●'!D3),'●　入力ﾌｫｰﾑ　●'!D3, TEXT(TODAY(),\"[$-411]ggg\")&\"　 　年　　月　　日\")","v":"令和　 　年　　月　　日"}]
[]
[]
[null,null,null,null,null,null,null,"申請者氏名",null,null,null,{"$f":"'●　入力ﾌｫｰﾑ　●'!$C$5&\"\"","v":""}]
[null,null,null,null,null,null,null,null,null,null,null,{"$f":"'●　入力ﾌｫｰﾑ　●'!$C$7&\"\"","v":""}]
[]
[]
[null,null,null,null,null,null,null,"設計者氏名",null,null,null,{"$f":"'●　入力ﾌｫｰﾑ　●'!$C$29&\"\"","v":""}]
[null,null,null,null,null,null,null,null,null,null,null,{"$f":"'●　入力ﾌｫｰﾑ　●'!$C$27&\"\"","v":""}]
[]
["〔計画を変更する建築物の直前の構造計算適合性判定〕"]
[null,"〔適合判定通知書番号〕",null,null,null,null,null,null,"第ＫＪＨ適",null,null,null,null,null,"号"]
[null,"〔適合判定通知書交付年月日〕",null,null,null,null,null,null,"令和",null,"年",null,"月",null,"日"]
[null,"〔適合判定通知書交付者〕",null,null,null,null,null,null,"九州住宅保証株式会社　代表取締役　吉田 勲　様"]
[null,"〔計画変更の概要〕",null,null,null,null,null,null,{"$f":"DATA!$C$41","v":""}]
[]
[]
[]
["※手数料欄"]
[]
[]
["※受付欄",null,null,null,null,null,"※決裁欄",null,null,null,null,null,null,null,"※適合判定通知書番号欄"]
[" 令和　    年      月    　日",null,null,null,null,null,null,null,null,null,null,null,null,null," 令和　    年      月     日"]
[]
[" 第",null,null,null,null,"号",null,null,null,null,null,null,null,null," 第",null,null,null,null,"号"]
[]
[" 係員氏名",null,null,null,null,null,null,null,null,null,null,null,null,null," 係員氏名"]

{"sheet":"変更通知一面","index":7,"n_rows":52,"n_cols":20,"rows_kept":52,"cut":false,"hidden":true,"merged":[[29,11,29,18],[3,0,3,19],[5,0,5,19],[9,0,9,19],[12,0,12,19],[14,0,14,19],[16,0,16,19],[25,14,25,19],[28,11,28,18],[32,7,32,9],[32,11,32,18],[33,11,33,18],[36,11,36,13],[39,8,41,18]]}
[]
["第４２号の１２の３様式（第８条の２の２及び第８条の２の３関係）　（Ａ４）"]
[]
["建築基準法第１８条第５項の規定による"]
[]
["計 画 変 更 通 知 書"]
[]
[]
[]
["（第一面）"]
[]
[]
["　建築基準法第１８条第５項（同法第１８条の２第４項の規定により読み替えて適用される場合"]
[]
["を含む。）の規定により計画の変更を通知します。"]
[]
[]
[]
[]
[]
[]
["九州住宅保証株式会社"]
[]
["代表取締役　吉田 勲　様"]
[]
[null,null,null,null,null,null,null,null,null,null,null,null,null,null,{"$f":"IF(ISNUMBER('●　入力ﾌｫｰﾑ　●'!D3),'●　入力ﾌｫｰﾑ　●'!D3, TEXT(TODAY(),\"[$-411]ggg\")&\"　 　年　　月　　日\")","v":"令和　 　年　　月　　日"}]
[]
[]
[null,null,null,null,null,null,null,"通知者官職",null,null,null,{"$f":"'●　入力ﾌｫｰﾑ　●'!$C$5&\"\"","v":""}]
[null,null,null,null,null,null,null,null,null,null,null,{"$f":"'●　入力ﾌｫｰﾑ　●'!$C$7&\"\"","v":""}]
[]
[]
[null,null,null,null,null,null,null,"設計者氏名",null,null,null,{"$f":"'●　入力ﾌｫｰﾑ　●'!$C$29&\"\"","v":""}]
[null,null,null,null,null,null,null,null,null,null,null,{"$f":"'●　入力ﾌｫｰﾑ　●'!$C$27&\"\"","v":""}]
[]
["〔計画を変更する建築物の直前の構造計算適合性判定〕"]
[null,"〔適合判定通知書番号〕",null,null,null,null,null,null,"第ＫＪＨ適",null,null,null,null,null,"号"]
[null,"〔適合判定通知書交付年月日〕",null,null,null,null,null,null,"令和",null,"年",null,"月",null,"日"]
[null,"〔適合判定通知書交付者〕",null,null,null,null,null,null,"九州住宅保証株式会社　代表取締役　吉田 勲　様"]
[null,"〔計画変更の概要〕",null,null,null,null,null,null,{"$f":"DATA!$C$41","v":""}]
[]
[]
[]
["※手数料欄"]
[]
[]
["※受付欄",null,null,null,null,null,"※決裁欄",null,null,null,null,null,null,null,"※適合判定通知書番号欄"]
[" 令和　    年      月    　日",null,null,null,null,null,null,null,null,null,null,null,null,null," 令和　    年      月     日"]
[]
[" 第",null,null,null,null,"号",null,null,null,null,null,null,null,null," 第",null,null,null,null,"号"]
[]
[" 係員氏名",null,null,null,null,null,null,null,null,null,null,null,null,null," 係員氏名"]

{"sheet":"申請書二面・三面","index":8,"n_rows":220,"n_cols":20,"rows_kept":220,"cut":false,"hidden":false,"merged":[[4,5,4,19],[5,5,5,7],[6,5,6,19],[7,5,7,8],[10,9,10,11],[10,12,10,13],[10,14,10,15],[3,5,3,19],[16,5,16,8],[20,9,20,11],[20,12,20,13],[20,14,20,15],[21,5,21,19],[22,11,22,12],[22,16,22,18],[11,5,11,19],[12,11,12,12],[12,16,12,18],[13,5,13,19],[14,5,14,7],[15,5,15,19],[31,5,31,19],[32,11,32,12],[32,16,32,18],[33,5,33,19],[34,5,34,7],[35,5,35,19],[23,5,23,19],[24,5,24,7],[25,5,25,19],[26,5,26,8],[27,7,27,18],[30,9,30,11],[30,12,30,13],[30,14,30,15],[42,11,42,12],[42,16,42,18],[43,5,43,19],[44,5,44,7],[45,5,45,19],[46,5,46,8],[36,5,36,8],[37,7,37,18],[40,9,40,11],[40,12,40,13],[40,14,40,15],[41,5,41,19],[53,5,53,19],[54,5,54,7],[55,5,55,19],[56,5,56,8],[57,7,57,18],[63,3,63,9],[47,7,47,18],[50,9,50,11],[50,12,50,13],[50,14,50,15],[51,5,51,19],[52,11,52,12],[52,16,52,18],[74,9,74,10],[77,4,77,5],[77,6,78,19],[79,5,79,19],[82,4,82,17],[88,6,88,19],[64,9,64,10],[66,3,66,9],[67,9,67,10],[70,3,70,9],[71,9,71,10],[73,3,73,9],[147,6,147,8],[148,5,148,6],[148,11,148,12],[162,3,162,16],[101,3,101,8],[101,11,101,16],[117,5,117,10],[121,2,121,3],[89,6,89,19],[95,4,95,8],[98,6,98,8],[99,6,99,8],[100,5,100,6],[100,11,100,12],[114,3,114,16],[93,7,93,10],[219,1,221,18],[188,7,188,10],[93,3,93,6],[124,1,126,18],[141,7,141,10],[196,3,196,8],[196,11,196,16],[212,5,212,10],[216,2,216,3],[188,3,188,6],[190,4,190,8],[193,6,193,8],[194,6,194,8],[195,5,195,6],[195,11,195,12],[209,3,209,16],[172,1,174,18],[149,3,149,8],[149,11,149,16],[165,5,165,10],[169,2,169,3],[141,3,141,6],[143,4,143,8],[146,6,146,8]]}
[null,null,null,null,null,null,null,null,null,null,"（第二面）"]
[]
["【1.建築主】"]
[null,"【ｲ.氏名のﾌﾘｶﾞﾅ】",null,null,null,{"$f":"'●　入力ﾌｫｰﾑ　●'!$C$4&\"　　 \"&'●　入力ﾌｫｰﾑ　●'!$C$6","v":"　　 "}]
[null,"【ﾛ.氏名】",null,null,null,{"$f":"'●　入力ﾌｫｰﾑ　●'!$C$5&\"　　 \"&'●　入力ﾌｫｰﾑ　●'!$C$7","v":"　　 "}]
[null,"【ﾊ.郵便番号】",null,null,null,{"$f":"IF('●　入力ﾌｫｰﾑ　●'!$C$8=\"\",\"\",'●　入力ﾌｫｰﾑ　●'!$C$8)","v":""}]
[null,"【ﾆ.住所】",null,null,null,{"$f":"'●　入力ﾌｫｰﾑ　●'!$C$9&\"\"","v":""}]
[null,"【ﾎ.電話番号】",null,null,null,{"$f":"'●　入力ﾌｫｰﾑ　●'!$C$10&\"\"","v":""}]
[]
["【2.代理者】"]
[null,"【ｲ.資格】",null,null,null,"（",{"$f":"'●　入力ﾌｫｰﾑ　●'!$C$11&\"\"","v":""},"）建築士（",null,{"$f":"'●　入力ﾌｫｰﾑ　●'!$E$11&\"\"","v":""},null,null,"）登録第",null,{"$f":"'●　入力ﾌｫｰﾑ　●'!$G$11&\"\"","v":""},null,"号"]
[null,"【ﾛ.氏名】",null,null,null,{"$f":"'●　入力ﾌｫｰﾑ　●'!$C$12&\"\"","v":""}]
[null,"【ﾊ.建築士事務所名】",null,null,null,"（",{"$f":"'●　入力ﾌｫｰﾑ　●'!$C$13&\"\"","v":""},"） 建築士事務所   （",null,null,null,{"$f":"'●　入力ﾌｫｰﾑ　●'!$E$13&\"\"","v":""},null,"）知事登録第",null,null,{"$f":"'●　入力ﾌｫｰﾑ　●'!$G$13&\"\"","v":""},null,null,"号"]
[null,null,null,null,null,{"$f":"'●　入力ﾌｫｰﾑ　●'!$C$14&\"\"","v":""}]
[null,"【ﾆ.郵便番号】",null,null,null,{"$f":"IF('●　入力ﾌｫｰﾑ　●'!$C$15=\"\",\"\",'●　入力ﾌｫｰﾑ　●'!$C$15)","v":""}]
[null,"【ﾎ.所在地】",null,null,null,{"$f":"'●　入力ﾌｫｰﾑ　●'!$C$16&\"\"","v":""}]
[null,"【ﾍ.電話番号】",null,null,null,{"$f":"'●　入力ﾌｫｰﾑ　●'!$C$17&\"\"","v":""}]
[]
["【3.設計者】"]
["(代表となる設計者）"]
[null,"【ｲ.資格】",null,null,null,"（",{"$f":"'●　入力ﾌｫｰﾑ　●'!$C$26&\"\"","v":""},"）建築士（",null,{"$f":"'●　入力ﾌｫｰﾑ　●'!$E$26&\"\"","v":""},null,null,"）登録第",null,{"$f":"'●　入力ﾌｫｰﾑ　●'!$G$26&\"\"","v":""},null,"号"]
[null,"【ﾛ.氏名】",null,null,null,{"$f":"'●　入力ﾌｫｰﾑ　●'!$C$27&\"\"","v":""}]
[null,"【ﾊ.建築士事務所名】",null,null,null,"（",{"$f":"'●　入力ﾌｫｰﾑ　●'!$C$28&\"\"","v":""},"） 建築士事務所   （",null,null,null,{"$f":"'●　入力ﾌｫｰﾑ　●'!$E$28&\"\"","v":""},null,"）知事登録第",null,null,{"$f":"'●　入力ﾌｫｰﾑ　●'!$G$28&\"\"","v":""},null,null,"号"]
[null,null,null,null,null,{"$f":"'●　入力ﾌｫｰﾑ　●'!$C$29&\"\"","v":""}]
[null,"【ﾆ.郵便番号】",null,null,null,{"$f":"IF('●　入力ﾌｫｰﾑ　●'!$C$30=\"\",\"\",'●　入力ﾌｫｰﾑ　●'!$C$30)","v":""}]
[null,"【ﾎ.所在地】",null,null,null,{"$f":"'●　入力ﾌｫｰﾑ　●'!$C$31&\"\"","v":""}]
[null,"【ﾍ.電話番号】",null,null,null,{"$f":"'●　入力ﾌｫｰﾑ　●'!$C$32&\"\"","v":""}]
[null,"【ﾄ.作成又は確認した設計図書】",null,null,null,null,null,{"$f":"DATA!$C$34","v":""}]
[]
["（その他設計者）"]
[null,"【ｲ.資格】",null,null,null,"（",{"$f":"'●　入力ﾌｫｰﾑ　●'!$C$35&\"\"","v":""},"）建築士（",null,{"$f":"'●　入力ﾌｫｰﾑ　●'!$E$35&\"\"","v":""},null,null,"）登録第",null,{"$f":"'●　入力ﾌｫｰﾑ　●'!$G$35&\"\"","v":""},null,"号"]
[null,"【ﾛ.氏名】",null,null,null,{"$f":"'●　入力ﾌｫｰﾑ　●'!$C$36&\"\"","v":""}]
[null,"【ﾊ.建築士事務所名】",null,null,null,"（",{"$f":"'●　入力ﾌｫｰﾑ　●'!$C$37&\"\"","v":""},"） 建築士事務所   （",null,null,null,{"$f":"'●　入力ﾌｫｰﾑ　●'!$E$37&\"\"","v":""},null,"）知事登録第",null,null,{"$f":"'●　入力ﾌｫｰﾑ　●'!$G$37&\"\"","v":""},null,null,"号"]
[null,null,null,null,null,{"$f":"'●　入力ﾌｫｰﾑ　●'!$C$38&\"\"","v":""}]
[null,"【ﾆ.郵便番号】",null,null,null,{"$f":"IF('●　入力ﾌｫｰﾑ　●'!$C$39=\"\",\"\",'●　入力ﾌｫｰﾑ　●'!$C$39)","v":""}]
[null,"【ﾎ.所在地】",null,null,null,{"$f":"'●　入力ﾌｫｰﾑ　●'!$C$40&\"\"","v":""}]
[null,"【ﾍ.電話番号】",null,null,null,{"$f":"'●　入力ﾌｫｰﾑ　●'!$C$41&\"\"","v":""}]
[null,"【ト.作成又は確認した設計図書】",null,null,null,null,null,{"$f":"DATA!$C$35","v":""}]
[]
[]
[null,"【ｲ.資格】",null,null,null,"（",{"$f":"'●　入力ﾌｫｰﾑ　●'!$C$44&\"\"","v":""},"）建築士（",null,{"$f":"'●　入力ﾌｫｰﾑ　●'!$E$44&\"\"","v":""},null,null,"）登録第",null,{"$f":"'●　入力ﾌｫｰﾑ　●'!$G$44&\"\"","v":""},null,"号"]
[null,"【ﾛ.氏名】",null,null,null,{"$f":"'●　入力ﾌｫｰﾑ　●'!$C$45&\"\"","v":""}]
[null,"【ﾊ.建築士事務所名】",null,null,null,"（",{"$f":"'●　入力ﾌｫｰﾑ　●'!$C$46&\"\"","v":""},"） 建築士事務所   （",null,null,null,{"$f":"'●　入力ﾌｫｰﾑ　●'!$E$46&\"\"","v":""},null,"）知事登録第",null,null,{"$f":"'●　入力ﾌｫｰﾑ　●'!$G$46&\"\"","v":""},null,null,"号"]
[null,null,null,null,null,{"$f":"'●　入力ﾌｫｰﾑ　●'!$C$47&\"\"","v":""}]
[null,"【ﾆ.郵便番号】",null,null,null,{"$f":"IF('●　入力ﾌｫｰﾑ　●'!$C$48=\"\",\"\",'●　入力ﾌｫｰﾑ　●'!$C$48)","v":""}]
[null,"【ﾎ.所在地】",null,null,null,{"$f":"'●　入力ﾌｫｰﾑ　●'!$C$49&\"\"","v":""}]
[null,"【ﾍ.電話番号】",null,null,null,{"$f":"'●　入力ﾌｫｰﾑ　●'!$C$50&\"\"","v":""}]
[null,"【ト.作成又は確認した設計図書】",null,null,null,null,null,{"$f":"DATA!$C$36","v":""}]
[]
[]
[null,"【ｲ.資格】",null,null,null,"（",{"$f":"'●　入力ﾌｫｰﾑ　●'!$C$53&\"\"","v":""},"）建築士（",null,{"$f":"'●　入力ﾌｫｰﾑ　●'!$E$53&\"\"","v":""},null,null,"）登録第",null,{"$f":"'●　入力ﾌｫｰﾑ　●'!$G$53&\"\"","v":""},null,"号"]
[null,"【ﾛ.氏名】",null,null,null,{"$f":"'●　入力ﾌｫｰﾑ　●'!$C$54&\"\"","v":""}]
[null,"【ﾊ.建築士事務所名】",null,null,null,"（",{"$f":"'●　入力ﾌｫｰﾑ　●'!$C$55&\"\"","v":""},"） 建築士事務所   （",null,null,null,{"$f":"'●　入力ﾌｫｰﾑ　●'!$E$55&\"\"","v":""},null,"）知事登録第",null,null,{"$f":"'●　入力ﾌｫｰﾑ　●'!$G$55&\"\"","v":""},null,null,"号"]
[null,null,null,null,null,{"$f":"'●　入力ﾌｫｰﾑ　●'!$C$56&\"\"","v":""}]
[null,"【ﾆ.郵便番号】",null,null,null,{"$f":"IF('●　入力ﾌｫｰﾑ　●'!$C$57=\"\",\"\",'●　入力ﾌｫｰﾑ　●'!$C$57)","v":""}]
[null,"【ﾎ.所在地】",null,null,null,{"$f":"'●　入力ﾌｫｰﾑ　●'!$C$58&\"\"","v":""}]
[null,"【ﾍ.電話番号】",null,null,null,{"$f":"'●　入力ﾌｫｰﾑ　●'!$C$59&\"\"","v":""}]
[null,"【ト.作成又は確認した設計図書】",null,null,null,null,null,{"$f":"DATA!$C$37","v":""}]
[]
[]
["　　（構造設計一級建築士である旨表示した者）"]
["　　上記の設計者のうち"]
[null,"建築士法第20条の2第1項の表示をした者"]
[{"$f":"'●　入力ﾌｫｰﾑ　●'!A63","v":"□"},"【ｲ.氏名】",null,{"$f":"'●　入力ﾌｫｰﾑ　●'!$D$63&\"\"","v":""}]
[null,"【ﾛ.資格】",null,"構造設計一級建築士交付第",null,null,null,null,null,{"$f":"'●　入力ﾌｫｰﾑ　●'!$D$64&\"\"","v":""},null,"号"]
[]
[null,"【ｲ.氏名】",null,{"$f":"'●　入力ﾌｫｰﾑ　●'!$D$65&\"\"","v":""}]
[null,"【ﾛ.資格】",null,"構造設計一級建築士交付第",null,null,null,null,null,{"$f":"'●　入力ﾌｫｰﾑ　●'!$D$66&\"\"","v":""},null,"号"]
[]
[{"$f":"'●　入力ﾌｫｰﾑ　●'!A67","v":"□"},"建築士法第20条の2第3項の表示をした者"]
[null,"【ｲ.氏名】",null,{"$f":"'●　入力ﾌｫｰﾑ　●'!$D$67&\"\"","v":""}]
[null,"【ﾛ.資格】　構造設計一級建築士交付第",null,null,null,null,null,null,null,{"$f":"'●　入力ﾌｫｰﾑ　●'!$D$68&\"\"","v":""},null,"号"]
[]
[null,"【ｲ.氏名】",null,{"$f":"'●　入力ﾌｫｰﾑ　●'!$D$69&\"\"","v":""}]
[null,"【ﾛ.資格】　構造設計一級建築士交付第",null,null,null,null,null,null,null,{"$f":"'●　入力ﾌｫｰﾑ　●'!$D$70&\"\"","v":""},null,"号"]
[]
["【4.敷地の位置】"]
[null,"【ｲ.地名地番】",null,null,"福岡県",null,{"$f":"DATA!$C$38","v":""}]
[]
[null,"【ﾛ.住居表示】",null,null,null,{"$f":"'●　入力ﾌｫｰﾑ　●'!$C$73&\"\"","v":""}]
[]
["【5.確認の申請】"]
[null,{"$f":"'●　入力ﾌｫｰﾑ　●'!B74","v":"■　未申請"},null,"(",{"$f":"'●　入力ﾌｫｰﾑ　●'!D74&\"　　 \"&'●　入力ﾌｫｰﾑ　●'!G74&\"　　 \"&'●　入力ﾌｫｰﾑ　●'!D75","v":"　　 　　 "},null,null,null,null,null,null,null,null,null,null,null,null,null,"）"]
[]
["【6.工事種別】"]
[null,{"$f":"'●　入力ﾌｫｰﾑ　●'!B78","v":"□ 新築"},null,{"$f":"'●　入力ﾌｫｰﾑ　●'!C78","v":"□ 増築"},null,{"$f":"'●　入力ﾌｫｰﾑ　●'!D78","v":"□ 改築"},null,{"$f":"'●　入力ﾌｫｰﾑ　●'!E78","v":"□ 移転"},null,{"$f":"'●　入力ﾌｫｰﾑ　●'!F78","v":"□ 大規模の修繕"},null,null,null,{"$f":"'●　入力ﾌｫｰﾑ　●'!G78","v":"□ 大規模の模様替"}]
[]
["【7.備考】"]
[null,"【名称のフリガナ】",null,null,null,null,{"$f":"'●　入力ﾌｫｰﾑ　●'!$C$79&\"\"","v":""}]
[null,"【建築物の名称又は工事名】",null,null,null,null,{"$f":"'●　入力ﾌｫｰﾑ　●'!$C$80&\"\"","v":""}]
[null,null,null,null,null,null,null,null,null,null,"（第三面）"]
["建築物独立部分別概要"]
[]
["【1.番号】",null,null,{"$f":"'●　入力ﾌｫｰﾑ　●'!$C$81&\"\"","v":""},null,null,null,{"$f":"'●　入力ﾌｫｰﾑ　●'!$E$81&\"\"","v":""}]
[]
["【2.延べ面積】",null,null,null,{"$f":"IF('●　入力ﾌｫｰﾑ　●'!$C$82=\"\",\"\",'●　入力ﾌｫｰﾑ　●'!$C$82)","v":""},null,null,null,null,"㎡"]
[]
["【3.建築物の高さ等】"]
[null,"【ｲ.最高の高さ】",null,null,null,"(",{"$f":"IF('●　入力ﾌｫｰﾑ　●'!$D$83=\"\",\"\",'●　入力ﾌｫｰﾑ　●'!$D$83)","v":""},null,null,")   ","ｍ"]
[null,"【ﾛ.最高の軒の高さ】　",null,null,null,"(",{"$f":"IF('●　入力ﾌｫｰﾑ　●'!D84=\"\",\"\",'●　入力ﾌｫｰﾑ　●'!D84)","v":""},null,null,")   ","ｍ"]
[null,"【ﾊ.階数】",null,null,"地上  (",{"$f":"'●　入力ﾌｫｰﾑ　●'!$D$85&\"\"","v":""},null,"）階",null,null,"地下（",{"$f":"'●　入力ﾌｫｰﾑ　●'!$G$85&\"\"","v":""},null,"）階"]
[null,"【ニ.構造】",null,{"$f":"'●　入力ﾌｫｰﾑ　●'!$D$86&\"\"","v":""},null,null,null,null,null,"造","一部",{"$f":"'●　入力ﾌｫｰﾑ　●'!$G$86&\"\"","v":""},null,null,null,null,null,"造"]
[]
["【4.特定構造計算基準又は特定増改築構造計算基準の別】"]
[null,{"$f":"'●　入力ﾌｫｰﾑ　●'!C88","v":"□　特定構造計算基準"}]
[null,{"$f":"'●　入力ﾌｫｰﾑ　●'!C89","v":"□　特定増改築構造計算基準"}]
[]
["【5.構造計算の区分】"]
[null,{"$f":"'●　入力ﾌｫｰﾑ　●'!C91","v":"□　建築基準法施行令第81条第2項第1号イに掲げる構造計算"}]
[null,{"$f":"'●　入力ﾌｫｰﾑ　●'!C92","v":"□　建築基準法施行令第81条第2項第1号ロに掲げる構造計算"}]
[null,{"$f":"'●　入力ﾌｫｰﾑ　●'!C93","v":"□　建築基準法施行令第81条第2項第2号イに掲げる構造計算"}]
[null,{"$f":"'●　入力ﾌｫｰﾑ　●'!C94","v":"□　建築基準法施行令第81条第3項に掲げる構造計算"}]
[]
["【6.構造計算に用いたプログラム】"]
[null,"【ｲ.名称】",null,{"$f":"'●　入力ﾌｫｰﾑ　●'!$C$97&\"\"","v":""}]
[null,"【ﾛ.区分】"]
[null,{"$f":"'●　入力ﾌｫｰﾑ　●'!C99","v":"□　建築基準法第20条第1項第2号イ又は第3号イの認定を受けたプログラム"}]
[null,null,"　（大臣認定番号",null,null,{"$f":"'●　入力ﾌｫｰﾑ　●'!$D$100&\"\"","v":""},null,null,null,null,null,"）"]
[null,{"$f":"'●　入力ﾌｫｰﾑ　●'!C101","v":"□　その他のプログラム"}]
[]
["【7.建築基準法施行令第137条の2各号に掲げる範囲の区分】"]
[null,"（",{"$f":"'●　入力ﾌｫｰﾑ　●'!$C$104&\"\"","v":""},null,"）"]
[]
["【8.備考】"]
[null,{"$f":"IF(OR(DATA!$C$3=\"計画変更判定申請\",DATA!$C$3=\"計画変更計画通知\"),'●　入力ﾌｫｰﾑ　●'!$C$106&\"\",\"\")","v":""}]
[]
[]
[]
[]
[]
[]
[]
[]
[]
[]
[]
[]
[]
[null,null,null,null,null,null,null,null,null,null,"（第三面）"]
["建築物独立部分別概要"]
[]
["【1.番号】",null,null,{"$f":"'●　入力ﾌｫｰﾑ　●'!$C$109&\"\"","v":""},null,null,null,{"$f":"'●　入力ﾌｫｰﾑ　●'!$E$109&\"\"","v":""}]
[]
["【2.延べ面積】",null,null,null,{"$f":"IF('●　入力ﾌｫｰﾑ　●'!$C$110=\"\",\"\",'●　入力ﾌｫｰﾑ　●'!$C$110)","v":""},null,null,null,null,"㎡"]
[]
["【3.建築物の高さ等】"]
[null,"【ｲ.最高の高さ】",null,null,null,"(",{"$f":"IF('●　入力ﾌｫｰﾑ　●'!$D$111=\"\",\"\",'●　入力ﾌｫｰﾑ　●'!$D$111)","v":""},null,null,")   ","ｍ"]
[null,"【ﾛ.最高の軒の高さ】　",null,null,null,"(",{"$f":"IF('●　入力ﾌｫｰﾑ　●'!$D$112=\"\",\"\",'●　入力ﾌｫｰﾑ　●'!$D$112)","v":""},null,null,")   ","ｍ"]
[null,"【ﾊ.階数】",null,null,"地上  (",{"$f":"'●　入力ﾌｫｰﾑ　●'!$D$113&\"\"","v":""},null,"）階",null,null,"地下（",{"$f":"'●　入力ﾌｫｰﾑ　●'!$G$113&\"\"","v":""},null,"）階"]
[null,"【ニ.構造】",null,{"$f":"'●　入力ﾌｫｰﾑ　●'!$D$114&\"\"","v":""},null,null,null,null,null,"造","一部",{"$f":"'●　入力ﾌｫｰﾑ　●'!$G$114&\"\"","v":""},null,null,null,null,null,"造"]
[]
["【4.特定構造計算基準又は特定増改築構造計算基準の別】"]
[null,{"$f":"'●　入力ﾌｫｰﾑ　●'!C116","v":"□　特定構造計算基準"}]
[null,{"$f":"'●　入力ﾌｫｰﾑ　●'!C117","v":"□　特定増改築構造計算基準"}]
[]
["【5.構造計算の区分】"]
[null,{"$f":"'●　入力ﾌｫｰﾑ　●'!C119","v":"□　建築基準法施行令第81条第2項第1号イに掲げる構造計算"}]
[null,{"$f":"'●　入力ﾌｫｰﾑ　●'!C120","v":"□　建築基準法施行令第81条第2項第1号ロに掲げる構造計算"}]
[null,{"$f":"'●　入力ﾌｫｰﾑ　●'!C121","v":"□　建築基準法施行令第81条第2項第2号イに掲げる構造計算"}]
[null,{"$f":"'●　入力ﾌｫｰﾑ　●'!C122","v":"□　建築基準法施行令第81条第3項に掲げる構造計算"}]
[]
["【6.構造計算に用いたプログラム】"]
[null,"【ｲ.名称】",null,{"$f":"'●　入力ﾌｫｰﾑ　●'!$C$125&\"\"","v":""}]
[null,"【ﾛ.区分】"]
[null,{"$f":"'●　入力ﾌｫｰﾑ　●'!C127","v":"□　建築基準法第20条第1項第2号イ又は第3号イの認定を受けたプログラム"}]
[null,null,"　（大臣認定番号",null,null,{"$f":"'●　入力ﾌｫｰﾑ　●'!$D$128&\"\"","v":""},null,null,null,null,null,"）"]
[null,{"$f":"'●　入力ﾌｫｰﾑ　●'!C129","v":"□　その他のプログラム"}]
[]
["【7.建築基準法施行令第137条の2各号に掲げる範囲の区分】"]
[null,"（",{"$f":"'●　入力ﾌｫｰﾑ　●'!$C$132&\"\"","v":""},null,"）"]
[]
["【8.備考】"]
[null,{"$f":"IF(OR(DATA!$C$3=\"計画変更判定申請\",DATA!$C$3=\"計画変更計画通知\"),'●　入力ﾌｫｰﾑ　●'!$C$134&\"\",\"\")","v":""}]
[]
[]
[]
[]
[]
[]
[]
[]
[]
[]
[]
[]
[null,null,null,null,null,null,null,null,null,null,"（第三面）"]
["建築物独立部分別概要"]
[]
["【1.番号】",null,null,{"$f":"'●　入力ﾌｫｰﾑ　●'!$C$137&\"\"","v":""},null,null,null,{"$f":"'●　入力ﾌｫｰﾑ　●'!$E$137&\"\"","v":""}]
[]
["【2.延べ面積】",null,null,null,{"$f":"IF('●　入力ﾌｫｰﾑ　●'!$C$138=\"\",\"\",'●　入力ﾌｫｰﾑ　●'!$C$138)","v":""},null,null,null,null,"㎡"]
[]
["【3.建築物の高さ等】"]
[null,"【ｲ.最高の高さ】",null,null,null,"(",{"$f":"IF('●　入力ﾌｫｰﾑ　●'!$D$139=\"\",\"\",'●　入力ﾌｫｰﾑ　●'!$D$139)","v":""},null,null,")   ","ｍ"]
[null,"【ﾛ.最高の軒の高さ】　",null,null,null,"(",{"$f":"IF('●　入力ﾌｫｰﾑ　●'!$D$140=\"\",\"\",'●　入力ﾌｫｰﾑ　●'!$D$140)","v":""},null,null,")   ","ｍ"]
[null,"【ﾊ.階数】",null,null,"地上  (",{"$f":"'●　入力ﾌｫｰﾑ　●'!$D$141&\"\"","v":""},null,"）階",null,null,"地下（",{"$f":"'●　入力ﾌｫｰﾑ　●'!$G$141&\"\"","v":""},null,"）階"]
[null,"【ニ.構造】",null,{"$f":"'●　入力ﾌｫｰﾑ　●'!$D$142&\"\"","v":""},null,null,null,null,null,"造","一部",{"$f":"'●　入力ﾌｫｰﾑ　●'!$G$142&\"\"","v":""},null,null,null,null,null,"造"]
[]
["【4.特定構造計算基準又は特定増改築構造計算基準の別】"]
[null,{"$f":"'●　入力ﾌｫｰﾑ　●'!C144","v":"□　特定構造計算基準"}]
[null,{"$f":"'●　入力ﾌｫｰﾑ　●'!C145","v":"□　特定増改築構造計算基準"}]
[]
["【5.構造計算の区分】"]
[null,{"$f":"'●　入力ﾌｫｰﾑ　●'!C147","v":"□　建築基準法施行令第81条第2項第1号イに掲げる構造計算"}]
[null,{"$f":"'●　入力ﾌｫｰﾑ　●'!C148","v":"□　建築基準法施行令第81条第2項第1号ロに掲げる構造計算"}]
[null,{"$f":"'●　入力ﾌｫｰﾑ　●'!C149","v":"□　建築基準法施行令第81条第2項第2号イに掲げる構造計算"}]
[null,{"$f":"'●　入力ﾌｫｰﾑ　●'!C150","v":"□　建築基準法施行令第81条第3項に掲げる構造計算"}]
[]
["【6.構造計算に用いたプログラム】"]
[null,"【ｲ.名称】",null,{"$f":"'●　入力ﾌｫｰﾑ　●'!$C$153&\"\"","v":""}]
[null,"【ﾛ.区分】"]
[null,{"$f":"'●　入力ﾌｫｰﾑ　●'!C155","v":"□　建築基準法第20条第1項第2号イ又は第3号イの認定を受けたプログラム"}]
[null,null,"　（大臣認定番号",null,null,{"$f":"'●　入力ﾌｫｰﾑ　●'!$D$156&\"\"","v":""},null,null,null,null,null,"）"]
[null,{"$f":"'●　入力ﾌｫｰﾑ　●'!C157","v":"□　その他のプログラム"}]
[]
["【7.建築基準法施行令第137条の2各号に掲げる範囲の区分】"]
[null,"（",{"$f":"'●　入力ﾌｫｰﾑ　●'!$C$160&\"\"","v":""},null,"）"]
[]
["【8.備考】"]
[null,{"$f":"IF(OR(DATA!$C$3=\"計画変更判定申請\",DATA!$C$3=\"計画変更計画通知\"),'●　入力ﾌｫｰﾑ　●'!$C$162&\"\",\"\")","v":""}]

{"sheet":"委任状","index":9,"n_rows":55,"n_cols":26,"rows_kept":55,"cut":false,"hidden":false,"merged":[[14,13,15,25],[17,13,17,25],[2,0,2,25],[4,17,4,25],[11,13,12,25],[18,7,18,25],[52,1,52,25],[20,0,20,25],[22,0,22,25],[50,1,50,25],[51,1,51,25],[47,7,48,25],[36,7,37,25],[39,0,39,5],[43,7,44,25],[45,7,46,25],[24,0,24,25],[25,0,25,5],[36,0,36,5],[39,7,41,25]]}
["別記第４号様式"]
[]
["委　　　任　　　状"]
[]
[null,null,null,null,null,null,null,null,null,null,null,null,null,null,null,null,null,{"$f":"IF(ISNUMBER('●　入力ﾌｫｰﾑ　●'!E3),'●　入力ﾌｫｰﾑ　●'!E3, TEXT(TODAY(),\"[$-411]ggg\")&\"　 　年　　月　　日\")","v":"令和　 　年　　月　　日"}]
["九州住宅保証株式会社"]
["代表取締役　吉田　勲　様"]
[]
[]
[null,null,null,null,null,null,null,null,null,null,null,"建築主"]
[]
[null,null,null,null,null,null,null,null,null,null,null,"住所",null,{"$f":"'●　入力ﾌｫｰﾑ　●'!$C$9&'●　入力ﾌｫｰﾑ　●'!$E$9","v":""}]
[]
[]
[null,null,null,null,null,null,null,null,null,null,null,"氏名",null,{"$f":"'●　入力ﾌｫｰﾑ　●'!$C$5&\"\"","v":""}]
[]
[]
[null,null,null,null,null,null,null,null,null,null,null,null,null,{"$f":"'●　入力ﾌｫｰﾑ　●'!$C$7&\"\"","v":""}]
[null,null,null,null,null,null,null,"（法人にあっては、その事務所の所在地、名称及び代表者の氏名）"]
[]
["　私は下記の者を代理人と定め、下記の構造計算適合性判定に係る建築基準法等の規定に基づ"]
[]
["く手続き（交付される文書の受領を含む。）に関する一切の権限を委任します。"]
[]
["記"]
["【申請の区分】"]
[]
[null,{"$f":"'●　入力ﾌｫｰﾑ　●'!C18","v":"□　建築基準法第６条の３第１項の規定による判定申請"}]
[null,{"$f":"'●　入力ﾌｫｰﾑ　●'!C19","v":"□　建築基準法第６条の３第１項の規定による計画変更判定申請"}]
[null,{"$f":"'●　入力ﾌｫｰﾑ　●'!C20","v":"□　建築基準法第１８条第５項の規定による計画通知"}]
[null,{"$f":"'●　入力ﾌｫｰﾑ　●'!C21","v":"□　建築基準法第１８条第５項の規定による計画変更通知"}]
[]
[null,{"$f":"'●　入力ﾌｫｰﾑ　●'!C22","v":"□　判定申請取下げ届"},null,null,null,null,null,null,null,{"$f":"'●　入力ﾌｫｰﾑ　●'!C23","v":"□　判定申請取止め届"}]
[null,{"$f":"'●　入力ﾌｫｰﾑ　●'!C24","v":"□　計画通知取下げ届"},null,null,null,null,null,null,null,{"$f":"'●　入力ﾌｫｰﾑ　●'!C25","v":"□　計画通知取止め届"}]
[]
[]
["【建築物の名称】",null,null,null,null,null,null,{"$f":"'●　入力ﾌｫｰﾑ　●'!$C$80&\"\"","v":""}]
[]
[]
["【敷地の地名地番】",null,null,null,null,null,null,{"$f":"DATA!$C$39","v":"福岡県"}]
[]
[]
[]
["【代理人】",null,null,null,"住  所",null,"：",{"$f":"'●　入力ﾌｫｰﾑ　●'!$C$16&\"\"","v":""}]
[]
[null,null,null,null,"会社名",null,"：",{"$f":"'●　入力ﾌｫｰﾑ　●'!$C$14&\"\"","v":""}]
[]
[null,null,null,null,"氏  名",null,"：",{"$f":"'●　入力ﾌｫｰﾑ　●'!$C$12&\"\"","v":""}]
[]
["（注意）"]
[null,"１．本委任状は、必ず委任者（建築主）本人の意思に基づいて作成してください。"]
[null,"２．本委任状の記載事項に関して、委任先（代理人）及び委任者（建築主）の間で生じた"]
[null,"    トラブルについて、弊社はその責を負いませんので、ご了承ください。"]
[]
[null,null,null,null,null,null,null,null,null,null,null,null,null,null,null,null,null,null,null,null,null,null,null,null,null,"九州住宅保証株式会社　202507　"]

{"sheet":"送付依頼書","index":10,"n_rows":75,"n_cols":26,"rows_kept":75,"cut":false,"hidden":false,"merged":[[24,1,24,25],[26,1,26,25],[28,1,28,25],[30,1,30,25],[32,1,32,25],[39,8,40,25],[37,8,37,25],[41,8,43,25],[54,5,54,9],[35,8,36,25],[65,1,65,6],[66,1,72,6],[50,6,50,9],[51,5,52,25],[48,5,48,24],[4,0,5,26],[14,16,15,25],[22,1,22,25],[9,1,9,15],[17,16,18,25],[7,18,7,25]]}
[]
[null,null,null,null,null,null,null,null,null,null,null,null,null,null,null,null,null,null,null,null,null,null,null,null,null,"KJH適判－運用別記第２２号様式"]
[]
[]
["送　付　依　頼　書"]
[]
[]
[null,null,null,null,null,null,null,null,null,null,null,null,null,null,null,null,null,null,{"$f":"IF(ISNUMBER('●　入力ﾌｫｰﾑ　●'!D3),'●　入力ﾌｫｰﾑ　●'!D3, TEXT(TODAY(),\"[$-411]ggg\")&\"　 　年　　月　　日\")","v":"令和　 　年　　月　　日"}]
[]
[null,"九州住宅保証株式会社　"]
[null,"代表取締役　吉田　勲　様"]
[]
[null,null,null,null,null,null,null,null,null,null,null,null,null,null,"申請者（代理者）"]
[]
[null,null,null,null,null,null,null,null,null,null,null,null,null,null,"住所",null,{"$f":"'●　入力ﾌｫｰﾑ　●'!$C$16&'●　入力ﾌｫｰﾑ　●'!$E$16","v":""}]
[]
[]
[null,null,null,null,null,null,null,null,null,null,null,null,null,null,"氏名",null,{"$f":"'●　入力ﾌｫｰﾑ　●'!$C$14&\"　　 \"&'●　入力ﾌｫｰﾑ　●'!$C$12","v":"　　 "}]
[]
[null,"　"]
[]
[]
[null,"　下記の判定申請（計画通知を含む。）について、建築基準法第１８条の２第４項の規定"]
[]
[null,"により読み替えて適用される同法第６条の３第４項又は同法第１８条第７項の規定による"]
[]
[null,"適合判定通知書を交付すると同時に、適合判定通知書（写しを含む。）及び施行規則第３"]
[]
[null,"条の７（施行規則第３条の１０又は施行規則第８条の２第７項において準用する場合を含"]
[]
[null,"む。）に規定する申請書又は通知書の副本並びにこれらに添えた図書及び書類を下記へ送"]
[]
[null,"付することを依頼いたします。"]
[null,null,null,null,null,null,null,null,null,null,null,null,null,"記"]
[]
[null,"１．建築主",null,null,null,null,null,":",{"$f":"'●　入力ﾌｫｰﾑ　●'!$C$5&\"\"","v":""}]
[]
[null,null,null,null,null,null,null,null,{"$f":"'●　入力ﾌｫｰﾑ　●'!$C$7&\"\"","v":""}]
[]
[null,"２．建築物の名称",null,null,null,null,null,":",{"$f":"'●　入力ﾌｫｰﾑ　●'!$C$80&\"\"","v":""}]
[]
[null,"３．建築場所",null,null,null,null,null,":",{"$f":"DATA!$C$39","v":"福岡県"}]
[]
[]
[null,"４．送付先",null,null,null,null,null,":"]
[]
[null,null,"建築主事又は指定確認検査機関名（支店・事務所名）/部署・担当者名"]
[]
[null,null,null,null,null,{"$f":"'●　入力ﾌｫｰﾑ　●'!$D$74&\"　\"&'●　入力ﾌｫｰﾑ　●'!$G$74&\"  \"&'●　入力ﾌｫｰﾑ　●'!$D$76","v":"　  "},null,null,null,null,null,null,null,null,null,null,null,null,null,null,null,null,null,null,null,"様"]
[]
[null,"　　　　　　","住所",null,null,"〒"]
[]
[]
[]
[null,"　　　　　　","TEL"]
[]
[null,null,"本書を作成するにあたり、下記事項の全てを確認いたしました。"]
[]
[null,null,"・建築主の了解を得ています。"]
[]
[null,null,"・建築主事又は指定確認検査機関の了解を得ています。"]
[]
[null,null,"・判定申請図書等の送付に関する下記の注意事項について了解しました。"]
[]
[]
[null,"KJH受付印"]
[null,null,null,null,null,null,null,null,"[注意事項]"]
[null,null,null,null,null,null,null,null,"１．判定申請図書等は、原則として九州住宅保証株式会社指定の信書便にて"]
[null,null,null,null,null,null,null,null,"送付致します。（送付費用は負担させて頂きます。）"]
[null,null,null,null,null,null,null,null,"２．判定申請図書等の取り扱いには十分注意致しますが、宅配業者等による"]
[null,null,null,null,null,null,null,null,"図書の紛失、破損、遅延等に関しましては申請者にて対処頂きますよう、よ"]
[null,null,null,null,null,null,null,null,"ろしくお願い致します。"]
[]
[]
[null,null,null,null,null,null,null,null,null,null,null,null,null,null,null,null,null,null,null,null,null,null,null,null,null,"九州住宅保証株式会社　202507"]

{"sheet":"追加建築主","index":11,"n_rows":51,"n_cols":11,"rows_kept":51,"cut":false,"hidden":false,"merged":[[12,5,12,20],[8,5,8,8],[41,5,41,7],[19,5,19,20],[20,5,20,7],[21,5,21,20],[25,5,25,20],[26,5,26,20],[27,5,27,7],[22,5,22,8],[33,5,33,20],[34,5,34,7],[35,5,35,20],[39,5,39,20],[40,5,40,20],[15,5,15,8],[4,5,4,20],[5,5,5,20],[6,5,6,7],[7,5,7,20],[11,5,11,20],[13,5,13,7],[14,5,14,20],[18,5,18,20],[50,5,50,8],[36,5,36,8],[43,5,43,8],[29,5,29,8],[28,5,28,20],[32,5,32,20],[42,5,42,20],[46,5,46,20],[47,5,47,20],[48,5,48,7],[49,5,49,20]]}
[]
[null,null,null,null,null,null,null,null,null,null,"（別紙 ）"]
[]
["【追加の建築主】"]
[null,"【イ.氏名のフリガナ】",null,null,null,""]
[null,"【ロ.氏名】",null,null,null,""]
[null,"【ハ.郵便番号】"]
[null,"【ニ.住所】",null,null,null,""]
[null,"【ホ.電話番号】",null,null,null,""]
[]
[]
[null,"【イ.氏名のフリガナ】",null,null,null,""]
[null,"【ロ.氏名】",null,null,null,""]
[null,"【ハ.郵便番号】"]
[null,"【ニ.住所】",null,null,null,""]
[null,"【ホ.電話番号】",null,null,null,""]
[]
[]
[null,"【イ.氏名のフリガナ】",null,null,null,""]
[null,"【ロ.氏名】",null,null,null,""]
[null,"【ハ.郵便番号】"]
[null,"【ニ.住所】",null,null,null,""]
[null,"【ホ.電話番号】",null,null,null,""]
[]
[]
[null,"【イ.氏名のフリガナ】",null,null,null,""]
[null,"【ロ.氏名】",null,null,null,""]
[null,"【ハ.郵便番号】"]
[null,"【ニ.住所】",null,null,null,""]
[null,"【ホ.電話番号】",null,null,null,""]
[]
[]
[null,"【イ.氏名のフリガナ】",null,null,null,""]
[null,"【ロ.氏名】",null,null,null,""]
[null,"【ハ.郵便番号】"]
[null,"【ニ.住所】",null,null,null,""]
[null,"【ホ.電話番号】",null,null,null,""]
[]
[]
[null,"【イ.氏名のフリガナ】",null,null,null,""]
[null,"【ロ.氏名】",null,null,null,""]
[null,"【ハ.郵便番号】"]
[null,"【ニ.住所】",null,null,null,""]
[null,"【ホ.電話番号】",null,null,null,""]
[]
[]
[null,"【イ.氏名のフリガナ】",null,null,null,""]
[null,"【ロ.氏名】",null,null,null,""]
[null,"【ハ.郵便番号】"]
[null,"【ニ.住所】",null,null,null,""]
[null,"【ホ.電話番号】",null,null,null,""]

{"sheet":"追加設計者","index":12,"n_rows":62,"n_cols":21,"rows_kept":62,"cut":false,"hidden":false,"merged":[[54,6,54,7],[54,11,54,13],[54,17,54,19],[48,5,48,7],[49,5,49,20],[40,5,40,8],[41,7,41,20],[44,6,44,7],[4,6,4,7],[6,12,6,13],[4,17,4,19],[6,17,6,19],[6,6,6,7],[4,11,4,13],[5,5,5,20],[20,5,20,8],[37,5,37,20],[38,5,38,7],[44,11,44,13],[39,5,39,20],[44,17,44,19],[27,5,27,20],[28,5,28,7],[29,5,29,20],[35,5,35,20],[34,11,34,13],[34,17,34,19],[30,5,30,8],[31,7,31,20],[34,6,34,7],[61,7,61,20],[50,5,50,8],[51,7,51,20],[45,5,45,20],[55,5,55,20],[57,5,57,20],[58,5,58,7],[59,5,59,20],[56,6,56,7],[47,5,47,20],[56,12,56,13],[56,17,56,19],[60,5,60,8],[46,6,46,7],[46,12,46,13],[46,17,46,19],[7,5,7,20],[8,5,8,7],[36,6,36,7],[36,12,36,13],[36,17,36,19],[25,5,25,20],[24,6,24,7],[24,11,24,13],[24,17,24,19],[26,6,26,7],[26,12,26,13],[26,17,26,19],[21,7,21,20],[14,6,14,7],[14,11,14,13],[17,5,17,20],[18,5,18,7],[19,5,19,20],[11,7,11,20],[9,5,9,20],[14,17,14,19],[16,6,16,7],[16,12,16,13],[16,17,16,19],[15,5,15,20],[10,5,10,8]]}
[]
[null,null,null,null,null,null,null,null,null,null,"（別紙 ）"]
[]
["【追加の設計者】"]
[null,"【ｲ.資格】",null,null,null,"（","",null,"）建築士",null,"（","",null,null,"）登録第",null,null,"",null,null,"号"]
[null,"【ﾛ.氏名】",null,null,null,""]
[null,"【ﾊ.建築士事務所名】　",null,null,null,"（","",null,"） 建築士事務所　（",null,null,"（","",null,"）　知事登録第",null,null,"",null,null,"号"]
[null,null,null,null,null,""]
[null,"【ﾆ.郵便番号】"]
[null,"【ﾎ.所在地】",null,null,null,""]
[null,"【ﾍ.電話番号】",null,null,null,""]
[null,"【ﾄ.作成又は確認した設計図書】",null,null,null,null,null,""]
[]
[]
[null,"【ｲ.資格】",null,null,null,"（","",null,"）建築士",null,"（","",null,null,"）登録第",null,null,"",null,null,"号"]
[null,"【ﾛ.氏名】",null,null,null,""]
[null,"【ﾊ.建築士事務所名】　",null,null,null,"（","",null,"） 建築士事務所　（",null,null,"（","",null,"）　知事登録第",null,null,"",null,null,"号"]
[null,null,null,null,null,""]
[null,"【ﾆ.郵便番号】"]
[null,"【ﾎ.所在地】",null,null,null,""]
[null,"【ﾍ.電話番号】",null,null,null,""]
[null,"【ﾄ.作成又は確認した設計図書】",null,null,null,null,null,""]
[]
[]
[null,"【ｲ.資格】",null,null,null,"（","",null,"）建築士",null,"（","",null,null,"）登録第",null,null,"",null,null,"号"]
[null,"【ﾛ.氏名】",null,null,null,""]
[null,"【ﾊ.建築士事務所名】　",null,null,null,"（","",null,"） 建築士事務所　（",null,null,"（","",null,"）　知事登録第",null,null,"",null,null,"号"]
[null,null,null,null,null,""]
[null,"【ﾆ.郵便番号】"]
[null,"【ﾎ.所在地】",null,null,null,""]
[null,"【ﾍ.電話番号】",null,null,null,""]
[null,"【ﾄ.作成又は確認した設計図書】",null,null,null,null,null,""]
[]
[]
[null,"【ｲ.資格】",null,null,null,"（","",null,"）建築士",null,"（","",null,null,"）登録第",null,null,"",null,null,"号"]
[null,"【ﾛ.氏名】",null,null,null,""]
[null,"【ﾊ.建築士事務所名】　",null,null,null,"（","",null,"） 建築士事務所　（",null,null,"（","",null,"）　知事登録第",null,null,"",null,null,"号"]
[null,null,null,null,null,""]
[null,"【ﾆ.郵便番号】"]
[null,"【ﾎ.所在地】",null,null,null,""]
[null,"【ﾍ.電話番号】",null,null,null,""]
[null,"【ﾄ.作成又は確認した設計図書】",null,null,null,null,null,""]
[]
[]
[null,"【ｲ.資格】",null,null,null,"（","",null,"）建築士",null,"（","",null,null,"）登録第",null,null,"",null,null,"号"]
[null,"【ﾛ.氏名】",null,null,null,""]
[null,"【ﾊ.建築士事務所名】　",null,null,null,"（","",null,"） 建築士事務所　（",null,null,"（","",null,"）　知事登録第",null,null,"",null,null,"号"]
[null,null,null,null,null,""]
[null,"【ﾆ.郵便番号】"]
[null,"【ﾎ.所在地】",null,null,null,""]
[null,"【ﾍ.電話番号】",null,null,null,""]
[null,"【ﾄ.作成又は確認した設計図書】",null,null,null,null,null,""]
[]
[]
[null,"【ｲ.資格】",null,null,null,"（","",null,"）建築士",null,"（","",null,null,"）登録第",null,null,"",null,null,"号"]
[null,"【ﾛ.氏名】",null,null,null,""]
[null,"【ﾊ.建築士事務所名】　",null,null,null,"（","",null,"） 建築士事務所　（",null,null,"（","",null,"）　知事登録第",null,null,"",null,null,"号"]
[null,null,null,null,null,""]
[null,"【ﾆ.郵便番号】"]
[null,"【ﾎ.所在地】",null,null,null,""]
[null,"【ﾍ.電話番号】",null,null,null,""]
[null,"【ﾄ.作成又は確認した設計図書】",null,null,null,null,null,""]

{"sheet":"追加構一","index":13,"n_rows":54,"n_cols":12,"rows_kept":54,"cut":false,"hidden":false,"merged":[[22,9,22,10],[6,3,6,9],[7,9,7,10],[9,3,9,9],[10,9,10,10],[12,3,12,9],[13,9,13,10],[15,3,15,9],[16,9,16,10],[18,3,18,9],[19,9,19,10],[21,3,21,9],[41,9,41,10],[24,3,24,9],[25,9,25,10],[27,3,27,9],[28,9,28,10],[31,3,31,9],[32,9,32,10],[34,3,34,9],[35,9,35,10],[37,3,37,9],[38,9,38,10],[40,3,40,9],[52,3,52,9],[53,9,53,10],[43,3,43,9],[44,9,44,10],[46,3,46,9],[47,9,47,10],[49,3,49,9],[50,9,50,10]]}
[]
[null,null,null,null,null,null,null,null,null,null,"（別紙 ）"]
[]
["　　（構造設計一級建築士である旨表示した者）"]
["　　上記の設計者のうち"]
[null,"建築士法第20条の2第1項の表示をした者"]
["□","【ｲ.氏名】"]
[null,"【ﾛ.資格】",null,"構造設計一級建築士交付第",null,null,null,null,null,null,null,"号"]
[]
[null,"【ｲ.氏名】"]
[null,"【ﾛ.資格】",null,"構造設計一級建築士交付第",null,null,null,null,null,null,null,"号"]
[]
[null,"【ｲ.氏名】"]
[null,"【ﾛ.資格】",null,"構造設計一級建築士交付第",null,null,null,null,null,null,null,"号"]
[]
[null,"【ｲ.氏名】"]
[null,"【ﾛ.資格】",null,"構造設計一級建築士交付第",null,null,null,null,null,null,null,"号"]
[]
[null,"【ｲ.氏名】"]
[null,"【ﾛ.資格】",null,"構造設計一級建築士交付第",null,null,null,null,null,null,null,"号"]
[]
[null,"【ｲ.氏名】"]
[null,"【ﾛ.資格】",null,"構造設計一級建築士交付第",null,null,null,null,null,null,null,"号"]
[]
[null,"【ｲ.氏名】"]
[null,"【ﾛ.資格】",null,"構造設計一級建築士交付第",null,null,null,null,null,null,null,"号"]
[]
[null,"【ｲ.氏名】"]
[null,"【ﾛ.資格】",null,"構造設計一級建築士交付第",null,null,null,null,null,null,null,"号"]
[]
["□","建築士法第20条の2第3項の表示をした者"]
[null,"【ｲ.氏名】"]
[null,"【ﾛ.資格】　構造設計一級建築士交付第",null,null,null,null,null,null,null,null,null,"号"]
[]
[null,"【ｲ.氏名】"]
[null,"【ﾛ.資格】　構造設計一級建築士交付第",null,null,null,null,null,null,null,null,null,"号"]
[]
[null,"【ｲ.氏名】"]
[null,"【ﾛ.資格】　構造設計一級建築士交付第",null,null,null,null,null,null,null,null,null,"号"]
[]
[null,"【ｲ.氏名】"]
[null,"【ﾛ.資格】　構造設計一級建築士交付第",null,null,null,null,null,null,null,null,null,"号"]
[]
[null,"【ｲ.氏名】"]
[null,"【ﾛ.資格】　構造設計一級建築士交付第",null,null,null,null,null,null,null,null,null,"号"]
[]
[null,"【ｲ.氏名】"]
[null,"【ﾛ.資格】　構造設計一級建築士交付第",null,null,null,null,null,null,null,null,null,"号"]
[]
[null,"【ｲ.氏名】"]
[null,"【ﾛ.資格】　構造設計一級建築士交付第",null,null,null,null,null,null,null,null,null,"号"]
[]
[null,"【ｲ.氏名】"]
[null,"【ﾛ.資格】　構造設計一級建築士交付第",null,null,null,null,null,null,null,null,null,"号"]

{"sheet":"追加第三面（複数棟用）","index":14,"n_rows":169,"n_cols":18,"rows_kept":169,"cut":false,"hidden":false,"merged":[[169,1,171,18],[144,6,144,8],[145,5,145,6],[145,11,145,12],[146,3,146,8],[146,11,146,16],[155,1,155,11],[166,2,166,3],[156,1,156,11],[159,3,159,16],[161,1,161,13],[162,5,162,10],[163,1,163,5],[114,3,114,16],[149,1,149,6],[150,1,150,6],[153,1,153,11],[154,1,154,11],[124,1,126,18],[138,3,138,6],[140,4,140,8],[143,6,143,8],[116,1,116,13],[117,5,117,10],[118,1,118,5],[121,2,121,3],[138,9,138,12],[105,1,105,6],[108,1,108,11],[109,1,109,11],[110,1,110,11],[111,1,111,11],[100,5,100,6],[100,11,100,12],[101,3,101,8],[101,11,101,16],[104,1,104,6],[93,3,93,6],[95,4,95,8],[98,6,98,8],[99,6,99,8],[79,1,81,18],[71,1,71,13],[72,5,72,10],[73,1,73,5],[76,2,76,3],[63,1,63,11],[64,1,64,11],[65,1,65,11],[66,1,66,11],[69,3,69,16],[31,2,31,3],[34,1,36,18],[26,1,26,13],[28,1,28,5],[48,3,48,6],[5,4,5,8],[3,3,3,6],[8,6,8,8],[9,6,9,8],[24,3,24,16],[10,5,10,6],[10,11,10,12],[11,3,11,8],[11,11,11,16],[18,1,18,11],[14,1,14,6],[15,1,15,6],[19,1,19,11],[3,9,3,12],[20,1,20,11],[21,1,21,11],[3,15,3,18],[48,15,48,18],[93,15,93,18],[138,15,138,18],[48,9,48,12],[93,9,93,12],[27,5,27,10],[50,4,50,8],[53,6,53,8],[54,6,54,8],[55,5,55,6],[55,11,55,12],[56,3,56,8],[56,11,56,16],[59,1,59,6],[60,1,60,6]]}
[null,null,null,null,null,null,null,null,null,"（第三面）"]
["建築物独立部分別概要"]
[]
["【1.番号】",null,null,""]
[]
["【2.延べ面積】",null,null,null,null,null,null,null,null,"㎡"]
[]
["【3.建築物の高さ等】"]
[null,"【ｲ.最高の高さ】",null,null,null,"(",null,null,null,")   ","ｍ"]
[null,"【ﾛ.最高の軒の高さ】　",null,null,null,"(",null,null,null,")   ","ｍ"]
[null,"【ﾊ.階数】",null,null,"地上  (",null,null,"）階",null,null,"地下（",null,null,"）階"]
[null,"【ニ.構造】",null,null,null,null,null,null,null,"造","一部",null,null,null,null,null,null,"造"]
[]
["【4.特定構造計算基準又は特定増改築構造計算基準の別】"]
[null,"□　特定構造計算基準"]
[null,"□　特定増改築構造計算基準"]
[]
["【5.構造計算の区分】"]
[null,"□　建築基準法施行令第81条第2項第1号イに掲げる構造計算"]
[null,"□　建築基準法施行令第81条第2項第1号ロに掲げる構造計算"]
[null,"□　建築基準法施行令第81条第2項第2号イに掲げる構造計算"]
[null,"□　建築基準法施行令第81条第3項に掲げる構造計算"]
[]
["【6.構造計算に用いたプログラム】"]
[null,"【ｲ.名称】"]
[null,"【ﾛ.区分】"]
[null,"□　建築基準法第20条第1項第2号イ又は第3号イの認定を受けたプログラム"]
[null,null,"　（大臣認定番号",null,null,null,null,null,null,null,null,"）"]
[null,"□　その他のプログラム"]
[]
["【7.建築基準法施行令第137条の2各号に掲げる範囲の区分】"]
[null,"（",null,null,"）"]
[]
["【8.備考】"]
[]
[]
[]
[]
[]
[]
[]
[]
[]
[]
[]
[null,null,null,null,null,null,null,null,null,"（第三面）"]
["建築物独立部分別概要"]
[]
["【1.番号】",null,null,""]
[]
["【2.延べ面積】",null,null,null,null,null,null,null,null,"㎡"]
[]
["【3.建築物の高さ等】"]
[null,"【ｲ.最高の高さ】",null,null,null,"(",null,null,null,")   ","ｍ"]
[null,"【ﾛ.最高の軒の高さ】　",null,null,null,"(",null,null,null,")   ","ｍ"]
[null,"【ﾊ.階数】",null,null,"地上  (",null,null,"）階",null,null,"地下（",null,null,"）階"]
[null,"【ニ.構造】",null,null,null,null,null,null,null,"造","一部",null,null,null,null,null,null,"造"]
[]
["【4.特定構造計算基準又は特定増改築構造計算基準の別】"]
[null,"□　特定構造計算基準"]
[null,"□　特定増改築構造計算基準"]
[]
["【5.構造計算の区分】"]
[null,"□　建築基準法施行令第81条第2項第1号イに掲げる構造計算"]
[null,"□　建築基準法施行令第81条第2項第1号ロに掲げる構造計算"]
[null,"□　建築基準法施行令第81条第2項第2号イに掲げる構造計算"]
[null,"□　建築基準法施行令第81条第3項に掲げる構造計算"]
[]
["【6.構造計算に用いたプログラム】"]
[null,"【ｲ.名称】"]
[null,"【ﾛ.区分】"]
[null,"□　建築基準法第20条第1項第2号イ又は第3号イの認定を受けたプログラム"]
[null,null,"　（大臣認定番号",null,null,null,null,null,null,null,null,"）"]
[null,"□　その他のプログラム"]
[]
["【7.建築基準法施行令第137条の2各号に掲げる範囲の区分】"]
[null,"（",null,null,"）"]
[]
["【8.備考】"]
[]
[]
[]
[]
[]
[]
[]
[]
[]
[]
[]
[null,null,null,null,null,null,null,null,null,"（第三面）"]
["建築物独立部分別概要"]
[]
["【1.番号】",null,null,""]
[]
["【2.延べ面積】",null,null,null,null,null,null,null,null,"㎡"]
[]
["【3.建築物の高さ等】"]
[null,"【ｲ.最高の高さ】",null,null,null,"(",null,null,null,")   ","ｍ"]
[null,"【ﾛ.最高の軒の高さ】　",null,null,null,"(",null,null,null,")   ","ｍ"]
[null,"【ﾊ.階数】",null,null,"地上  (",null,null,"）階",null,null,"地下（",null,null,"）階"]
[null,"【ニ.構造】",null,null,null,null,null,null,null,"造","一部",null,null,null,null,null,null,"造"]
[]
["【4.特定構造計算基準又は特定増改築構造計算基準の別】"]
[null,"□　特定構造計算基準"]
[null,"□　特定増改築構造計算基準"]
[]
["【5.構造計算の区分】"]
[null,"□　建築基準法施行令第81条第2項第1号イに掲げる構造計算"]
[null,"□　建築基準法施行令第81条第2項第1号ロに掲げる構造計算"]
[null,"□　建築基準法施行令第81条第2項第2号イに掲げる構造計算"]
[null,"□　建築基準法施行令第81条第3項に掲げる構造計算"]
[]
["【6.構造計算に用いたプログラム】"]
[null,"【ｲ.名称】"]
[null,"【ﾛ.区分】"]
[null,"□　建築基準法第20条第1項第2号イ又は第3号イの認定を受けたプログラム"]
[null,null,"　（大臣認定番号",null,null,null,null,null,null,null,null,"）"]
[null,"□　その他のプログラム"]
[]
["【7.建築基準法施行令第137条の2各号に掲げる範囲の区分】"]
[null,"（",null,null,"）"]
[]
["【8.備考】"]
[]
[]
[]
[]
[]
[]
[]
[]
[]
[]
[]
[null,null,null,null,null,null,null,null,null,"（第三面）"]
["建築物独立部分別概要"]
[]
["【1.番号】",null,null,""]
[]
["【2.延べ面積】",null,null,null,null,null,null,null,null,"㎡"]
[]
["【3.建築物の高さ等】"]
[null,"【ｲ.最高の高さ】",null,null,null,"(",null,null,null,")   ","ｍ"]
[null,"【ﾛ.最高の軒の高さ】　",null,null,null,"(",null,null,null,")   ","ｍ"]
[null,"【ﾊ.階数】",null,null,"地上  (",null,null,"）階",null,null,"地下（",null,null,"）階"]
[null,"【ニ.構造】",null,null,null,null,null,null,null,"造","一部",null,null,null,null,null,null,"造"]
[]
["【4.特定構造計算基準又は特定増改築構造計算基準の別】"]
[null,"□　特定構造計算基準"]
[null,"□　特定増改築構造計算基準"]
[]
["【5.構造計算の区分】"]
[null,"□　建築基準法施行令第81条第2項第1号イに掲げる構造計算"]
[null,"□　建築基準法施行令第81条第2項第1号ロに掲げる構造計算"]
[null,"□　建築基準法施行令第81条第2項第2号イに掲げる構造計算"]
[null,"□　建築基準法施行令第81条第3項に掲げる構造計算"]
[]
["【6.構造計算に用いたプログラム】"]
[null,"【ｲ.名称】"]
[null,"【ﾛ.区分】"]
[null,"□　建築基準法第20条第1項第2号イ又は第3号イの認定を受けたプログラム"]
[null,null,"　（大臣認定番号",null,null,null,null,null,null,null,null,"）"]
[null,"□　その他のプログラム"]
[]
["【7.建築基準法施行令第137条の2各号に掲げる範囲の区分】"]
[null,"（",null,null,"）"]
[]
["【8.備考】"]

{"sheet":"追加委任状","index":15,"n_rows":55,"n_cols":26,"rows_kept":55,"cut":false,"hidden":false,"merged":[[25,0,25,5],[2,0,2,25],[4,17,4,25],[20,0,20,25],[22,0,22,25],[24,0,24,25],[11,13,12,25],[14,13,15,25],[17,13,17,25],[18,7,18,25],[47,7,48,25],[50,1,50,25],[51,1,51,25],[52,1,52,25],[36,0,36,5],[36,7,37,25],[39,0,39,5],[43,7,44,25],[45,7,46,25],[39,7,42,25]]}
["別記第４号様式"]
[]
["委　　　任　　　状"]
[]
[null,null,null,null,null,null,null,null,null,null,null,null,null,null,null,null,null,{"$f":"IF(ISNUMBER('●　入力ﾌｫｰﾑ　●'!E3),'●　入力ﾌｫｰﾑ　●'!E3, TEXT(TODAY(),\"[$-411]ggg\")&\"　 　年　　月　　日\")","v":"令和　 　年　　月　　日"}]
["九州住宅保証株式会社"]
["代表取締役　吉田　勲　様"]
[]
[]
[null,null,null,null,null,null,null,null,null,null,null,"建築主"]
[]
[null,null,null,null,null,null,null,null,null,null,null,"住所"]
[]
[]
[null,null,null,null,null,null,null,null,null,null,null,"氏名"]
[]
[]
[]
[null,null,null,null,null,null,null,"（法人にあっては、その事務所の所在地、名称及び代表者の氏名）　"]
[]
["　私は下記の者を代理人と定め、下記の構造計算適合性判定に係る建築基準法等の規定に基づ"]
[]
["く手続き（交付される文書の受領を含む。）に関する一切の権限を委任します。"]
[]
["記"]
["【申請の区分】"]
[]
[null,"□","建築基準法第６条の３第１項の規定による判定申請"]
[null,"□","建築基準法第６条の３第２項の規定による計画変更判定申請"]
[null,"□","建築基準法第１８条第４項の規定による計画通知"]
[null,"□","建築基準法第１８条第４項の規定による計画変更通知"]
[]
[null,"□","判定申請取下げ届",null,null,null,null,null,null,"□","判定申請取止め届"]
[null,"□","計画通知取下げ届",null,null,null,null,null,null,"□","計画通知取止め届"]
[]
[]
["【建築物の名称】",null,null,null,null,null,null,{"$f":"'●　入力ﾌｫｰﾑ　●'!C80&\"\"","v":""}]
[]
[]
["【敷地の地名地番】",null,null,null,null,null,null,{"$f":"DATA!$C$39","v":"福岡県"}]
[]
[]
[]
["【代理人】",null,null,null,"住  所",null,"：",{"$f":"'●　入力ﾌｫｰﾑ　●'!$C$16&\"\"","v":""}]
[]
[null,null,null,null,"会社名",null,"：",{"$f":"'●　入力ﾌｫｰﾑ　●'!$C$14&\"\"","v":""}]
[]
[null,null,null,null,"氏  名",null,"：",{"$f":"'●　入力ﾌｫｰﾑ　●'!$C$12&\"\"","v":""}]
[]
["（注意）"]
[null,"１．本委任状は、必ず委任者（建築主）本人の意思に基づいて作成してください。"]
[null,"２．本委任状の記載事項に関して、委任先（代理人）及び委任者（建築主）の間で生じた"]
[null,"    トラブルについて、弊社はその責を負いませんので、ご了承ください。"]
[]
[null,null,null,null,null,null,null,null,null,null,null,null,null,null,null,null,null,null,null,null,null,null,null,null,null,"九州住宅保証株式会社　202507　　"]

{"sheet":"ﾌﾟﾙﾀﾞｳﾝﾘｽﾄ","index":16,"n_rows":50,"n_cols":14,"rows_kept":50,"cut":false,"hidden":true,"merged":[]}
["□　建築基準法第６条の３第１項の規定による判定申請","福岡県","大臣","一級","全ての申請図書","■　申請済","日本ＥＲＩ株式会社","長屋","□ 新築","鉄骨","□　特定構造計算基準","□　建築基準法施行令第81条第2項第1号イに掲げる構造計算","Super Build/SS7","□　建築基準法第20条第1項第2号イ又は第3号イの認定を受けたプログラム"]
["■　建築基準法第６条の３第１項の規定による判定申請","佐賀県","福岡県知事","二級","申請図書一式(構造図・構造計算書を除く)","■　未申請","ビューローベリタスジャパン株式会社","共同住宅","■ 新築","鉄筋ｺﾝｸﾘｰﾄ","■　特定構造計算基準","■　建築基準法施行令第81条第2項第1号イに掲げる構造計算","Super Build/SS3","■　建築基準法第20条第1項第2号イ又は第3号イの認定を受けたプログラム"]
[null,"長崎県","佐賀県知事",null,"意匠図",null,"株式会社 西日本住宅評価センター","寄宿舎","□ 増築","鉄骨鉄筋ｺﾝｸﾘｰﾄ","□　特定増改築構造計算基準","□　建築基準法施行令第81条第2項第1号ロに掲げる構造計算","Super Build/WRC","□　その他のプログラム"]
["□　建築基準法第６条の３第１項の規定による計画変更判定申請","熊本県","長崎県知事",null,"構造図",null,"一般社団法人　福岡県建築住宅センター","幼稚園","■ 増築","組積","■　特定増改築構造計算基準","■　建築基準法施行令第81条第2項第1号ロに掲げる構造計算","BUILD一貫VI","■　その他のプログラム"]
["■　建築基準法第６条の３第１項の規定による計画変更判定申請","大分県","熊本県知事",null,"構造計算書",null,"株式会社 国際確認検査センター","小学校","□ 改築","木",null,"□　建築基準法施行令第81条第2項第2号イに掲げる構造計算","BUS-6"]
[null,"宮崎県","大分県知事",null,"構造図・構造計算書",null,"株式会社 都市居住評価センター","義務教育学校","■ 改築","壁式鉄筋ｺﾝｸﾘｰﾄ",null,"■　建築基準法施行令第81条第2項第2号イに掲げる構造計算","構造モデラーシリーズ+NBUS7"]
["□　建築基準法第１８条第５項の規定による計画通知","鹿児島県","宮崎県知事",null,"構造計算書の法適合確認",null,"株式会社 住宅性能評価センター","中学校","□ 移転","軽量鉄骨",null,"□　建築基準法施行令第81条第3項に掲げる構造計算","ACE許容2"]
["■　建築基準法第１８条第５項の規定による計画通知","沖縄県","鹿児島県知事",null,"構造図・構造計算書の法適合確認",null,"株式会社 Ｊ建築検査センター","高等学校","■ 移転","ﾌﾟﾚｽﾄﾚｽﾄｺﾝｸﾘｰﾄ",null,"■　建築基準法施行令第81条第3項に掲げる構造計算","SEIN"]
[null,"北海道","沖縄県知事",null,null,null,"株式会社 ジェイ・イー・サポート　","中等教育学校","□ 大規模の修繕","ﾌﾟﾚｷｬｸﾄﾌﾟﾚｽﾄﾚｽｺﾝｸﾘｰﾄ",null,null,"ETKS"]
["□　建築基準法第１８条第５項の規定による計画変更通知","青森県","北海道知事",null,null,null,"ハウスプラス住宅保証株式会社","特別支援学校","■ 大規模の修繕"]
["■　建築基準法第１８条第５項の規定による計画変更通知","岩手県","青森県知事",null,null,null,"一般財団法人 日本建築センター","大学","□ 大規模の模様替"]
[null,"宮城県","岩手県知事",null,null,null,"一般財団法人 日本建築総合試験所","高等専門学校","■ 大規模の模様替"]
["□　判定申請取下げ届","秋田県","宮城県知事",null,null,null,"一般財団法人 ベターリビング","専修学校"]
["■　判定申請取下げ届","山形県","秋田県知事",null,null,null,"福岡市住宅都市局建築指導部建築審査課","各種学校"]
[null,"福島県","山形県知事",null,null,null,"北九州市建築都市局指導部建築審査課","幼保連携型認定こども園"]
["□　判定申請取止め届","茨城県","福島県知事",null,null,null,"久留米市都市建設部建築指導課","図書館"]
["■　判定申請取止め届","栃木県","茨城県知事",null,null,null,"大牟田市都市整備部建築住宅課","博物館"]
[null,"群馬県","栃木県知事",null,null,null,"北九州県土整備事務所","美術館"]
["□　計画通知取下げ届","東京都","群馬県知事",null,null,null,"福岡県土整備事務所","神社"]
["■　計画通知取下げ届","埼玉県","東京都知事",null,null,null,"那珂県土整備事務所","寺院"]
[null,"千葉県","埼玉県知事",null,null,null,"飯塚県土整備事務所","教会"]
["□　計画通知取止め届","神奈川県","千葉県知事",null,null,null,"直方県土整備事務所","老人ホーム"]
["■　計画通知取止め届","新潟県","神奈川県知事",null,null,null,"京築県土整備事務所","保育所"]
[null,"富山県","新潟県知事",null,null,null,"田川県土整備事務所","助産所（入所寝室有）"]
[null,"石川県","富山県知事",null,null,null,"久留米県土整備事務所","助産所（入所寝室無）"]
[null,"福井県","石川県知事",null,null,null,"朝倉県土整備事務所","児童福祉施設等（入所寝室有）"]
[null,"山梨県","福井県知事",null,null,null,"八女県土整備事務所","児童福祉施設等（入所寝室無）"]
[null,"長野県","山梨県知事",null,null,null,"南筑後県土整備事務所","公衆浴場"]
[null,"岐阜県","長野県知事",null,null,null,null,"無床診療所"]
[null,"静岡県","岐阜県知事",null,null,null,null,"有床診療所"]
[null,"愛知県","静岡県知事",null,null,null,null,"病院"]
[null,"三重県","愛知県知事",null,null,null,null,"市庁舎"]
[null,"大阪府","三重県知事",null,null,null,null,"工場"]
[null,"兵庫県","大阪府知事",null,null,null,null,"自動車修理工場"]
[null,"京都府","兵庫県知事",null,null,null,null,"体育館"]
[null,"奈良県","京都府知事",null,null,null,null,"スポーツ練習場"]
[null,"和歌山県","奈良県知事",null,null,null,null,"遊技場"]
[null,"滋賀県","和歌山県知事",null,null,null,null,"ホテル"]
[null,"鳥取県","滋賀県知事",null,null,null,null,"旅館"]
[null,"島根県","鳥取県知事",null,null,null,null,"日用品販売店舗"]
[null,"岡山県","島根県知事",null,null,null,null,"物販店舗"]
[null,"広島県","岡山県知事",null,null,null,null,"飲食店"]
[null,"山口県","広島県知事",null,null,null,null,"サービス店舗"]
[null,"徳島県","山口県知事",null,null,null,null,"銀行の支店"]
[null,"香川県","徳島県知事",null,null,null,null,"事務所"]
[null,"愛媛県","香川県知事",null,null,null,null,"自動車車庫"]
[null,"高知県","愛媛県知事",null,null,null,null,"営業倉庫"]
[null,null,"高知県知事",null,null,null,null,"非営倉庫"]
[null,null,null,null,null,null,null,"集会場"]
[null,null,null,null,null,null,null,"展示場"]